{"text_format":"1","workbook":"xlsx","n_sheets":13,"sheets":["設定","申込手順","男子入力シート","女子入力シート","男子団体メンバー用紙印刷","女子団体メンバー用紙印刷","申込書＿男子団体","申込書＿女子団体","申込書＿男子個人","申込書＿女子個人","申込選手一覧（個人）","申込選手一覧sort（個人）","プログラム"],"not_rendered":{"charts":0,"images":2,"macros":1,"external_links":0,"defined_names":8,"comments":0,"pivot_tables":0},"unopened":[],"bounds":{"document_bytes":16777216,"sheet_cells":100000,"rows_first":2000,"rows_last":500,"rows_between":2000,"halvings":0,"cell_chars":16384,"cell_head_chars":4096},"cells_cut":0,"cells_raw":0,"read":"whole","date_system":"1900"}

{"sheet":"設定","index":0,"n_rows":253,"n_cols":26,"rows_kept":253,"cut":false,"hidden":true,"merged":[]}
["学年",null,"段位",null,"西暦",null,"月",null,"日",null,"男子階級",null,"女子階級",null,"番号","校名","校名略",null,"申込締切年","申込締切月","申込締切日",null,"Ver",null,"大会回高校","中学"]
[1,null,"無",null,{"$f":"YEAR(TODAY())-F2","v":2006},20,1,null,1,null,60,null,"52以下",null,301,"旭","旭",null,2026,4,9,null,20260308,null,73,{"$f":"Y2-44","v":29}]
[2,null,"初",null,{"$f":"YEAR(TODAY())-F3","v":2007},19,2,null,2,null,66,null,"63以下",null,302,"枚方なぎさ","枚方なぎ"]
[3,null,"弐",null,2008,18,3,null,3,null,73,null,"無差別",null,303,"大手前","大 手 前"]
[null,null,"参",null,2009,17,4,null,4,null,81,null,null,null,304,"大阪わかば","わ か ば"]
[null,null,null,null,2010,16,5,null,5,null,90,null,null,null,305,"門真なみはや","門真なみ"]
[null,null,null,null,2011,15,6,null,6,null,100,null,null,null,306,"門真西","門 真 西"]
[null,null,null,null,{"$f":"YEAR(TODAY())-F8","v":2012},14,7,null,7,null,"100+",null,null,null,308,"香里丘","香 里 丘"]
[null,null,null,null,2013,13,8,null,8,null,null,null,null,null,309,"高津","高　　津"]
[null,null,null,null,2014,12,9,null,9,null,null,null,null,null,310,"四條畷","四 條 畷"]
[null,null,null,null,null,null,10,null,10,null,null,null,null,null,311,"清水谷","清 水 谷"]
[null,null,null,null,null,null,11,null,11,null,null,null,null,null,312,"緑風冠","緑 風 冠"]
[null,null,null,null,null,null,12,null,12,null,null,null,null,null,313,"かわち野","かわち野"]
[null,null,null,null,null,8,null,null,13,null,null,null,null,null,314,"長尾","長　　尾"]
[null,null,null,null,null,null,null,null,14,null,null,null,null,null,315,"西寝屋川","西寝屋川"]
[null,null,null,null,null,null,null,null,15,null,null,null,null,null,316,"寝屋川","寝 屋 川"]
[null,null,null,null,null,null,null,null,16,null,null,null,null,null,317,"北かわち皐が丘","北かわち"]
[null,null,null,null,null,null,null,null,17,null,null,null,null,null,318,"枚方","枚　　方"]
[null,null,null,null,null,null,null,null,18,null,null,null,null,null,319,"牧野","牧　　野"]
[null,null,null,null,null,null,null,null,19,null,null,null,null,null,322,"芦間","芦　　間"]
[null,null,null,null,null,null,null,null,20,null,null,null,null,null,323,"守口東","守 口 東"]
[null,null,null,null,null,null,null,null,21,null,null,null,null,null,324,"夕陽丘","夕 陽 丘"]
[null,null,null,null,null,null,null,null,22,null,null,null,null,null,325,"城東工科・東大阪みらい工科","城東工科"]
[null,null,null,null,null,null,null,null,23,null,null,null,null,null,326,"成城","成　　城"]
[null,null,null,null,null,null,null,null,24,null,null,null,null,null,327,"淀川工科","淀川工科"]
[null,null,null,null,null,null,null,null,25,null,null,null,null,null,329,"桜和","桜　　和"]
[null,null,null,null,null,null,null,null,26,null,null,null,null,null,330,"いちりつ","いちりつ"]
[null,null,null,null,null,null,null,null,27,null,null,null,null,null,331,"桜宮","桜　　宮"]
[null,null,null,null,null,null,null,null,28,null,null,null,null,null,332,"汎愛","汎　　愛"]
[null,null,null,null,null,null,null,null,29,null,null,null,null,null,333,"東","東"]
[null,null,null,null,null,null,null,null,30,null,null,null,null,null,335,"生野工業","生野工業"]
[null,null,null,null,null,null,null,null,31,null,null,null,null,null,336,"都島工業","都島工業"]
[null,null,null,null,null,null,null,null,null,null,null,null,null,null,338,"常翔学園","常翔学園"]
[null,null,null,null,null,null,null,null,null,null,null,null,null,null,339,"大阪産業大学附属","大産大附"]
[null,null,null,null,null,null,null,null,null,null,null,null,null,null,340,"追手門学院大手前","追手門大"]
[null,null,null,null,null,null,null,null,null,null,null,null,null,null,341,"常翔啓光学園","常翔啓光"]
[null,null,null,null,null,null,null,null,null,null,null,null,null,null,342,"大阪偕星学園","大阪偕星"]
[null,null,null,null,null,null,null,null,null,null,null,null,null,null,343,"太成学院大学","太成学院"]
[null,null,null,null,null,null,null,null,null,null,null,null,null,null,344,"大阪電気通信大学","電 通 大"]
[null,null,null,null,null,null,null,null,null,null,null,null,null,null,345,"同志社香里","同志社香"]
[null,null,null,null,null,null,null,null,null,null,null,null,null,null,346,"開明","開　　明"]
[null,null,null,null,null,null,null,null,null,null,null,null,null,null,347,"東海大学付属大阪仰星","東海仰星"]
[null,null,null,null,null,null,null,null,null,null,null,null,null,null,348,"大正白陵","大正白陵"]
[null,null,null,null,null,null,null,null,null,null,null,null,null,null,349,"和泉","和　　泉"]
[null,null,null,null,null,null,null,null,null,null,null,null,null,null,350,"泉大津","泉 大 津"]
[null,null,null,null,null,null,null,null,null,null,null,null,null,null,352,"市岡","市　　岡"]
[null,null,null,null,null,null,null,null,null,null,null,null,null,null,353,"今宮","今　　宮"]
[null,null,null,null,null,null,null,null,null,null,null,null,null,null,354,"鳳","鳳"]
[null,null,null,null,null,null,null,null,null,null,null,null,null,null,355,"貝塚","貝　　塚"]
[null,null,null,null,null,null,null,null,null,null,null,null,null,null,356,"貝塚南","貝 塚 南"]
[null,null,null,null,null,null,null,null,null,null,null,null,null,null,357,"金岡","金　　岡"]
[null,null,null,null,null,null,null,null,null,null,null,null,null,null,358,"岸和田","岸 和 田"]
[null,null,null,null,null,null,null,null,null,null,null,null,null,null,359,"港南造形","港南造形"]
[null,null,null,null,null,null,null,null,null,null,null,null,null,null,360,"久米田","久 米 田"]
[null,null,null,null,null,null,null,null,null,null,null,null,null,null,361,"堺上","堺　　上"]
[null,null,null,null,null,null,null,null,null,null,null,null,null,null,362,"堺西","堺　　西"]
[null,null,null,null,null,null,null,null,null,null,null,null,null,null,363,"堺東","堺　　東"]
[null,null,null,null,null,null,null,null,null,null,null,null,null,null,364,"佐野","佐　　野"]
[null,null,null,null,null,null,null,null,null,null,null,null,null,null,365,"狭山","狭　　山"]
[null,null,null,null,null,null,null,null,null,null,null,null,null,null,366,"信太","信　　太"]
[null,null,null,null,null,null,null,null,null,null,null,null,null,null,368,"りんくう翔南","りんくう"]
[null,null,null,null,null,null,null,null,null,null,null,null,null,null,369,"泉北","泉　　北"]
[null,null,null,null,null,null,null,null,null,null,null,null,null,null,370,"泉陽","泉　　陽"]
[null,null,null,null,null,null,null,null,null,null,null,null,null,null,372,"高石","高　　石"]
[null,null,null,null,null,null,null,null,null,null,null,null,null,null,373,"登美丘","登 美 丘"]
[null,null,null,null,null,null,null,null,null,null,null,null,null,null,374,"西成","西　　成"]
[null,null,null,null,null,null,null,null,null,null,null,null,null,null,376,"伯太","伯　　太"]
[null,null,null,null,null,null,null,null,null,null,null,null,null,null,377,"阪南","阪　　南"]
[null,null,null,null,null,null,null,null,null,null,null,null,null,null,378,"東百舌鳥","東百舌鳥"]
[null,null,null,null,null,null,null,null,null,null,null,null,null,null,379,"福泉","福　　泉"]
[null,null,null,null,null,null,null,null,null,null,null,null,null,null,380,"成美","成　　美"]
[null,null,null,null,null,null,null,null,null,null,null,null,null,null,381,"三国丘","三 国 丘"]
[null,null,null,null,null,null,null,null,null,null,null,null,null,null,382,"岬","岬"]
[null,null,null,null,null,null,null,null,null,null,null,null,null,null,383,"港","港"]
[null,null,null,null,null,null,null,null,null,null,null,null,null,null,384,"教育センター附属","センター"]
[null,null,null,null,null,null,null,null,null,null,null,null,null,null,386,"和泉総合","和泉総合"]
[null,null,null,null,null,null,null,null,null,null,null,null,null,null,387,"今宮工科","今宮工科"]
[null,null,null,null,null,null,null,null,null,null,null,null,null,null,388,"堺工科","堺 工 科"]
[null,null,null,null,null,null,null,null,null,null,null,null,null,null,389,"佐野工科","佐野工科"]
[null,null,null,null,null,null,null,null,null,null,null,null,null,null,390,"西野田工科","西野田工"]
[null,null,null,null,null,null,null,null,null,null,null,null,null,null,391,"日根野","日 根 野"]
[null,null,null,null,null,null,null,null,null,null,null,null,null,null,394,"泉尾工業","泉尾工業"]
[null,null,null,null,null,null,null,null,null,null,null,null,null,null,395,"岸和田市立産業","岸和田産"]
[null,null,null,null,null,null,null,null,null,null,null,null,null,null,396,"咲くやこの花","咲　　花"]
[null,null,null,null,null,null,null,null,null,null,null,null,null,null,397,"堺市立堺","堺市立堺"]
[null,null,null,null,null,null,null,null,null,null,null,null,null,null,398,"大阪商業大学堺","商 大 堺"]
[null,null,null,null,null,null,null,null,null,null,null,null,null,null,399,"大阪学芸","大阪学芸"]
[null,null,null,null,null,null,null,null,null,null,null,null,null,null,400,"清教学園","清教学園"]
[null,null,null,null,null,null,null,null,null,null,null,null,null,null,401,"浪速","浪　　速"]
[null,null,null,null,null,null,null,null,null,null,null,null,null,null,402,"利晶学園大阪立命館","初芝立命"]
[null,null,null,null,null,null,null,null,null,null,null,null,null,null,403,"清風南海","清風南海"]
[null,null,null,null,null,null,null,null,null,null,null,null,null,null,404,"帝塚山学院泉ケ丘","帝塚山泉"]
[null,null,null,null,null,null,null,null,null,null,null,null,null,null,405,"大阪金剛インターナショナル","大阪金剛"]
[null,null,null,null,null,null,null,null,null,null,null,null,null,null,406,"大阪体育大学浪商","体大浪商"]
[null,null,null,null,null,null,null,null,null,null,null,null,null,null,407,"大阪教育大学附属高等学校天王寺","教大天王"]
[null,null,null,null,null,null,null,null,null,null,null,null,null,null,408,"大阪教育大学附属高等学校平野","教大平野"]
[null,null,null,null,null,null,null,null,null,null,null,null,null,null,409,"阿倍野","阿 倍 野"]
[null,null,null,null,null,null,null,null,null,null,null,null,null,null,410,"生野","生　　野"]
[null,null,null,null,null,null,null,null,null,null,null,null,null,null,411,"みどり清朋","み ど り"]
[null,null,null,null,null,null,null,null,null,null,null,null,null,null,412,"大塚","大　　塚"]
[null,null,null,null,null,null,null,null,null,null,null,null,null,null,414,"河南","河　　南"]
[null,null,null,null,null,null,null,null,null,null,null,null,null,null,416,"金剛","金　　剛"]
[null,null,null,null,null,null,null,null,null,null,null,null,null,null,417,"住吉","住　　吉"]
[null,null,null,null,null,null,null,null,null,null,null,null,null,null,419,"天王寺","天 王 寺"]
[null,null,null,null,null,null,null,null,null,null,null,null,null,null,420,"富田林","富 田 林"]
[null,null,null,null,null,null,null,null,null,null,null,null,null,null,421,"長野","長　　野"]
[null,null,null,null,null,null,null,null,null,null,null,null,null,null,423,"長吉","長　　吉"]
[null,null,null,null,null,null,null,null,null,null,null,null,null,null,425,"花園","花　　園"]
[null,null,null,null,null,null,null,null,null,null,null,null,null,null,426,"懐風館","懐 風 館"]
[null,null,null,null,null,null,null,null,null,null,null,null,null,null,427,"東住吉","東 住 吉"]
[null,null,null,null,null,null,null,null,null,null,null,null,null,null,428,"平野","平　　野"]
[null,null,null,null,null,null,null,null,null,null,null,null,null,null,429,"藤井寺","藤 井 寺"]
[null,null,null,null,null,null,null,null,null,null,null,null,null,null,430,"布施","布　　施"]
[null,null,null,null,null,null,null,null,null,null,null,null,null,null,431,"布施北","布 施 北"]
[null,null,null,null,null,null,null,null,null,null,null,null,null,null,432,"松原","松　　原"]
[null,null,null,null,null,null,null,null,null,null,null,null,null,null,433,"美原","美　　原"]
[null,null,null,null,null,null,null,null,null,null,null,null,null,null,434,"八尾","八　　尾"]
[null,null,null,null,null,null,null,null,null,null,null,null,null,null,435,"八尾北","八 尾 北"]
[null,null,null,null,null,null,null,null,null,null,null,null,null,null,436,"八尾翠翔","八尾翠翔"]
[null,null,null,null,null,null,null,null,null,null,null,null,null,null,438,"山本","山　　本"]
[null,null,null,null,null,null,null,null,null,null,null,null,null,null,439,"枚岡樟風","牧岡樟風"]
[null,null,null,null,null,null,null,null,null,null,null,null,null,null,440,"農芸","農　　芸"]
[null,null,null,null,null,null,null,null,null,null,null,null,null,null,441,"東住吉総合","東住吉総"]
[null,null,null,null,null,null,null,null,null,null,null,null,null,null,442,"藤井寺工科","藤井寺工"]
[null,null,null,null,null,null,null,null,null,null,null,null,null,null,443,"布施工科","布施工科"]
[null,null,null,null,null,null,null,null,null,null,null,null,null,null,445,"日新","日　　新"]
[null,null,null,null,null,null,null,null,null,null,null,null,null,null,446,"上宮","上　　宮"]
[null,null,null,null,null,null,null,null,null,null,null,null,null,null,447,"金光八尾","金光八尾"]
[null,null,null,null,null,null,null,null,null,null,null,null,null,null,448,"阪南大学","阪南大学"]
[null,null,null,null,null,null,null,null,null,null,null,null,null,null,449,"大阪商業大学","大 商 大"]
[null,null,null,null,null,null,null,null,null,null,null,null,null,null,450,"東大阪大学柏原","東大柏原"]
[null,null,null,null,null,null,null,null,null,null,null,null,null,null,451,"近畿大学附属","近大附属"]
[null,null,null,null,null,null,null,null,null,null,null,null,null,null,452,"興國","興　　國"]
[null,null,null,null,null,null,null,null,null,null,null,null,null,null,454,"大阪星光学院","星光学院"]
[null,null,null,null,null,null,null,null,null,null,null,null,null,null,455,"清風","清　　風"]
[null,null,null,null,null,null,null,null,null,null,null,null,null,null,456,"ＰＬ学園","ＰＬ学園"]
[null,null,null,null,null,null,null,null,null,null,null,null,null,null,457,"桃山学院","桃山学院"]
[null,null,null,null,null,null,null,null,null,null,null,null,null,null,458,"芥川","芥　　川"]
[null,null,null,null,null,null,null,null,null,null,null,null,null,null,459,"阿武野","阿 武 野"]
[null,null,null,null,null,null,null,null,null,null,null,null,null,null,460,"池田","池　　田"]
[null,null,null,null,null,null,null,null,null,null,null,null,null,null,462,"茨木","茨　　木"]
[null,null,null,null,null,null,null,null,null,null,null,null,null,null,463,"茨木西","茨 木 西"]
[null,null,null,null,null,null,null,null,null,null,null,null,null,null,464,"北摂つばさ","北摂つば"]
[null,null,null,null,null,null,null,null,null,null,null,null,null,null,465,"園芸","園　　芸"]
[null,null,null,null,null,null,null,null,null,null,null,null,null,null,466,"春日丘","春 日 丘"]
[null,null,null,null,null,null,null,null,null,null,null,null,null,null,467,"北千里","北 千 里"]
[null,null,null,null,null,null,null,null,null,null,null,null,null,null,468,"北野","北　　野"]
[null,null,null,null,null,null,null,null,null,null,null,null,null,null,469,"柴島","柴　　島"]
[null,null,null,null,null,null,null,null,null,null,null,null,null,null,470,"桜塚","桜　　塚"]
[null,null,null,null,null,null,null,null,null,null,null,null,null,null,471,"渋谷","渋　　谷"]
[null,null,null,null,null,null,null,null,null,null,null,null,null,null,472,"金蘭千里","金蘭千里"]
[null,null,null,null,null,null,null,null,null,null,null,null,null,null,473,"槻の木","規 の 木"]
[null,null,null,null,null,null,null,null,null,null,null,null,null,null,476,"吹田","吹　　田"]
[null,null,null,null,null,null,null,null,null,null,null,null,null,null,477,"吹田東","吹 田 東"]
[null,null,null,null,null,null,null,null,null,null,null,null,null,null,478,"摂津","摂　　津"]
[null,null,null,null,null,null,null,null,null,null,null,null,null,null,479,"千里","千　　里"]
[null,null,null,null,null,null,null,null,null,null,null,null,null,null,480,"早稲田大阪","早稲田摂"]
[null,null,null,null,null,null,null,null,null,null,null,null,null,null,481,"高槻北","高 槻 北"]
[null,null,null,null,null,null,null,null,null,null,null,null,null,null,482,"豊島","豊　　島"]
[null,null,null,null,null,null,null,null,null,null,null,null,null,null,483,"豊中","豊　　中"]
[null,null,null,null,null,null,null,null,null,null,null,null,null,null,484,"大阪薫英女学院","大阪薫英"]
[null,null,null,null,null,null,null,null,null,null,null,null,null,null,486,"千里青雲","千里青雲"]
[null,null,null,null,null,null,null,null,null,null,null,null,null,null,487,"東淀川","東 淀 川"]
[null,null,null,null,null,null,null,null,null,null,null,null,null,null,488,"福井","福　　井"]
[null,null,null,null,null,null,null,null,null,null,null,null,null,null,489,"三島","三　　島"]
[null,null,null,null,null,null,null,null,null,null,null,null,null,null,490,"箕面","箕　　面"]
[null,null,null,null,null,null,null,null,null,null,null,null,null,null,491,"箕面東","箕 面 東"]
[null,null,null,null,null,null,null,null,null,null,null,null,null,null,492,"茨木工科","茨木工科"]
[null,null,null,null,null,null,null,null,null,null,null,null,null,null,493,"大冠","大　　冠"]
[null,null,null,null,null,null,null,null,null,null,null,null,null,null,494,"淀川清流","淀川清流"]
[null,null,null,null,null,null,null,null,null,null,null,null,null,null,495,"淀商業","淀　　商"]
[null,null,null,null,null,null,null,null,null,null,null,null,null,null,496,"東淀工業","東淀工業"]
[null,null,null,null,null,null,null,null,null,null,null,null,null,null,497,"大阪学院大学","大阪学院"]
[null,null,null,null,null,null,null,null,null,null,null,null,null,null,498,"大阪","大　　阪"]
[null,null,null,null,null,null,null,null,null,null,null,null,null,null,499,"大商学園","大商学園"]
[null,null,null,null,null,null,null,null,null,null,null,null,null,null,500,"追手門学院","追手門学"]
[null,null,null,null,null,null,null,null,null,null,null,null,null,null,501,"関西大倉","関西大倉"]
[null,null,null,null,null,null,null,null,null,null,null,null,null,null,502,"関西大学第一","関 大 一"]
[null,null,null,null,null,null,null,null,null,null,null,null,null,null,503,"金光大阪","金光大阪"]
[null,null,null,null,null,null,null,null,null,null,null,null,null,null,504,"高槻","高　　槻"]
[null,null,null,null,null,null,null,null,null,null,null,null,null,null,505,"星翔","星　　翔"]
[null,null,null,null,null,null,null,null,null,null,null,null,null,null,506,"履正社","履 正 社"]
[null,null,null,null,null,null,null,null,null,null,null,null,null,null,507,"関西大学北陽","関大北陽"]
[null,null,null,null,null,null,null,null,null,null,null,null,null,null,508,"箕面学園","箕面学園"]
[null,null,null,null,null,null,null,null,null,null,null,null,null,null,509,"箕面自由学園","箕面自由"]
[null,null,null,null,null,null,null,null,null,null,null,null,null,null,518,"堺工科","堺 工 科"]
[null,null,null,null,null,null,null,null,null,null,null,null,null,null,519,"三国丘","三 国 丘"]
[null,null,null,null,null,null,null,null,null,null,null,null,null,null,521,"大手前","大 手 前"]
[null,null,null,null,null,null,null,null,null,null,null,null,null,null,523,"都島第二工業","都島第二"]
[null,null,null,null,null,null,null,null,null,null,null,null,null,null,528,"今宮工科","今宮工科"]
[null,null,null,null,null,null,null,null,null,null,null,null,null,null,530,"西野田工科","西野田工"]
[null,null,null,null,null,null,null,null,null,null,null,null,null,null,531,"岸和田市立産業","岸和田産"]
[null,null,null,null,null,null,null,null,null,null,null,null,null,null,532,"堺市立堺","堺市立堺"]
[null,null,null,null,null,null,null,null,null,null,null,null,null,null,534,"和泉総合","和泉総合"]
[null,null,null,null,null,null,null,null,null,null,null,null,null,null,535,"佐野工科","佐野工科"]
[null,null,null,null,null,null,null,null,null,null,null,null,null,null,542,"日新","日　　新"]
[null,null,null,null,null,null,null,null,null,null,null,null,null,null,544,"桜塚","桜　　塚"]
[null,null,null,null,null,null,null,null,null,null,null,null,null,null,545,"春日丘","春 日 丘"]
[null,null,null,null,null,null,null,null,null,null,null,null,null,null,550,"建国","建　　国"]
[null,null,null,null,null,null,null,null,null,null,null,null,null,null,551,"豊中(能勢)","能　　勢"]
[null,null,null,null,null,null,null,null,null,null,null,null,null,null,553,"藤井寺工科","藤井寺工"]
[null,null,null,null,null,null,null,null,null,null,null,null,null,null,555,"野崎","野　　崎"]
[null,null,null,null,null,null,null,null,null,null,null,null,null,null,556,"関西創価","関西創価"]
[null,null,null,null,null,null,null,null,null,null,null,null,null,null,557,"プール学院","プール学"]
[null,null,null,null,null,null,null,null,null,null,null,null,null,null,558,"清明学院","清明学院"]
[null,null,null,null,null,null,null,null,null,null,null,null,null,null,560,"大阪ビジネスフロンティア","Ｏ Ｂ Ｆ"]
[null,null,null,null,null,null,null,null,null,null,null,null,null,null,562,"上宮太子","上宮太子"]
[null,null,null,null,null,null,null,null,null,null,null,null,null,null,563,"中央","中　　央"]
[null,null,null,null,null,null,null,null,null,null,null,null,null,null,564,"大阪学芸中等教育","学芸中等"]
[null,null,null,null,null,null,null,null,null,null,null,null,null,null,565,"鶴見商業","鶴見商業"]
[null,null,null,null,null,null,null,null,null,null,null,null,null,null,569,"東大阪大学敬愛","東大敬愛"]
[null,null,null,null,null,null,null,null,null,null,null,null,null,null,570,"東朋学園","東朋学園"]
[null,null,null,null,null,null,null,null,null,null,null,null,null,null,571,"英真学園","英真学園"]
[null,null,null,null,null,null,null,null,null,null,null,null,null,null,572,"山田","山　　田"]
[null,null,null,null,null,null,null,null,null,null,null,null,null,null,574,"向陽台","向 陽 台"]
[null,null,null,null,null,null,null,null,null,null,null,null,null,null,575,"交野","交　　野"]
[null,null,null,null,null,null,null,null,null,null,null,null,null,null,576,"中央学園","中央学園"]
[null,null,null,null,null,null,null,null,null,null,null,null,null,null,578,"布施","布　　施"]
[null,null,null,null,null,null,null,null,null,null,null,null,null,null,579,"昇陽","昇　　陽"]
[null,null,null,null,null,null,null,null,null,null,null,null,null,null,580,"金光藤蔭","金光藤蔭"]
[null,null,null,null,null,null,null,null,null,null,null,null,null,null,581,"八洲学園","八洲学園"]
[null,null,null,null,null,null,null,null,null,null,null,null,null,null,582,"長尾谷(なんば校)","長 尾 谷"]
[null,null,null,null,null,null,null,null,null,null,null,null,null,null,583,"好文学園女子","好文学園"]
[null,null,null,null,null,null,null,null,null,null,null,null,null,null,584,"羽衣学園","羽衣学園"]
[null,null,null,null,null,null,null,null,null,null,null,null,null,null,585,"大阪国際","大阪国際"]
[null,null,null,null,null,null,null,null,null,null,null,null,null,null,586,"天王寺学館","天王寺学"]
[null,null,null,null,null,null,null,null,null,null,null,null,null,null,587,"住吉商業","住吉商業"]
[null,null,null,null,null,null,null,null,null,null,null,null,null,null,588,"信愛学院","信　　愛"]
[null,null,null,null,null,null,null,null,null,null,null,null,null,null,589,"クラーク高等学院 天王寺校","クラーク"]
[null,null,null,null,null,null,null,null,null,null,null,null,null,null,590,"ヒュ-マンアカデミー大阪校","ヒュ-マン"]
[null,null,null,null,null,null,null,null,null,null,null,null,null,null,591,"四条畷学園","四條畷学"]
[null,null,null,null,null,null,null,null,null,null,null,null,null,null,592,"YMCA学院","ＹＭＣＡ"]
[null,null,null,null,null,null,null,null,null,null,null,null,null,null,593,"香ヶ丘リベルテ","リベルテ"]
[null,null,null,null,null,null,null,null,null,null,null,null,null,null,594,"鹿島学園(大阪中央ｴﾐｰﾙ高等学院)","鹿島学園"]
[null,null,null,null,null,null,null,null,null,null,null,null,null,null,597,"大阪朝鮮高級","朝鮮高級"]
[null,null,null,null,null,null,null,null,null,null,null,null,null,null,598,"大阪公立大学工業高等専門","公大工専"]
[null,null,null,null,null,null,null,null,null,null,null,null,null,null,580,"金光藤蔭","金光藤蔭"]
[null,null,null,null,null,null,null,null,null,null,null,null,null,null,581,"八洲学園","八洲学園"]
[null,null,null,null,null,null,null,null,null,null,null,null,null,null,582,"長尾谷","長 尾 谷"]
[null,null,null,null,null,null,null,null,null,null,null,null,null,null,583,"好文学園女子","好文学園"]
[null,null,null,null,null,null,null,null,null,null,null,null,null,null,584,"羽衣学園","羽衣学園"]
[null,null,null,null,null,null,null,null,null,null,null,null,null,null,585,"国際","大阪国際"]
[null,null,null,null,null,null,null,null,null,null,null,null,null,null,586,"天王寺学館","天王寺学"]
[null,null,null,null,null,null,null,null,null,null,null,null,null,null,587,"住吉商業","住吉商業"]
[null,null,null,null,null,null,null,null,null,null,null,null,null,null,588,"大阪信愛女学院","大阪信愛"]
[null,null,null,null,null,null,null,null,null,null,null,null,null,null,589,"クラーク国際","クラーク"]
[null,null,null,null,null,null,null,null,null,null,null,null,null,null,590,"ヒュ-マンアカデミー","ヒュ-マン"]
[null,null,null,null,null,null,null,null,null,null,null,null,null,null,591,"四條畷学園","四條畷学"]
[null,null,null,null,null,null,null,null,null,null,null,null,null,null,592,"YMCA学院","ＹＭＣＡ"]
[null,null,null,null,null,null,null,null,null,null,null,null,null,null,593,"香ケ丘リベルテ","リベルテ"]
[null,null,null,null,null,null,null,null,null,null,null,null,null,null,594,"鹿島学園","鹿島学園"]
[null,null,null,null,null,null,null,null,null,null,null,null,null,null,597,"大阪朝鮮高級","朝鮮高級"]
[null,null,null,null,null,null,null,null,null,null,null,null,null,null,598,"大阪公立大学工業高等専門学校","公大工専"]

{"sheet":"申込手順","index":1,"n_rows":15,"n_cols":11,"rows_kept":15,"cut":false,"hidden":false,"merged":[]}
[]
["①","入力シートに必要事項を記入し",null,null,null,null,null,null,null,"をクリックしてください。　郵送用の申込用紙が印刷されます。"]
[null,"※用紙は「B5」でお願いします。　(団体はB5　1枚　　個人は2名でB5　1枚　に印刷されます）"]
[]
["②","印刷された、申込用紙に「公印」を押して、期日までに所定の申込先に郵送してください。"]
[null,null,"〒590-0459　泉南郡熊取町朝代代1-1　TEL 072-453-7001"]
[null,null,"大阪体育大学浪商高等学校　　　寺居　史朗　宛"]
[]
[null,null,"申込締切日：",{"$f":"設定!S2","v":2026},"年",{"$f":"設定!T2","v":4},"月",{"$f":"設定!U2","v":9},"日",{"$f":"\"（\"&TEXT(DATE(D9,F9,H9),\"aaa\")&\"）\"","v":"（木）"},"正午　※郵送・メール共"]
[]
["③","入力済みのファイルを　ファイル＞名前を付けて保存＞で"]
[null,"ファイル名を　「　学校名　」に変更して保存してください。"]
[null,null,"例：「大阪体育大学浪商高校　.xlsm」　もしくは　「体大浪商　.xlsm」"]
["④","③で保存したファイルをメールに添付して　entry@sigaku.osakajudo.net　　に送信してください"]
["⑤","申し込みファイル　Ver.",null,{"$f":"設定!W2","v":20260308}]

{"sheet":"男子入力シート","index":2,"n_rows":36,"n_cols":14,"rows_kept":36,"cut":false,"hidden":false,"merged":[[1,11,2,13],[4,12,4,13],[6,7,7,7],[6,8,7,8],[6,10,7,10],[6,9,7,9],[3,12,3,13],[20,7,21,7],[20,8,21,8],[20,9,21,9],[20,10,21,10],[20,2,21,2]]}
[]
[null,"学校番号：",null,{"$f":"IF(C2=\"\",\"学校番号が入力されていません。\",IF(C2=598,VLOOKUP(C2,校名[],2,FALSE),VLOOKUP(C2,校名[],2,FALSE)&\"高等学校\"))","v":"学校番号が入力されていません。"},null,null,null,null,null,null,null,"【入　力　項　目】"]
[]
[null,null,"監督名：",null,"校長名：",null,null,null,null,null,null,"必須入力","リストから\n選択"]
[null,"※ふりがなは自動で入力されますが、違う場合は直接入力してください。",null,null,null,null,null,null,null,null,null,"直接入力","入力済み"]
[null,"男子団体",null,null,{"$f":"\"第\"&設定!Y2&\"回大阪私立高等学校総合体育大会　申込書\"","v":"第73回大阪私立高等学校総合体育大会　申込書"}]
[null,null,"抽選番号","選手名（ふりがな）",null,null,null,"学年","段位","体重(kg)","身長(cm)","生年月日"]
[null,null,null,"姓","名","せい","めい",null,null,null,null,"年(西暦)","月","日"]
[null,null,"先鋒",null,null,{"$f":"PHONETIC(D9)","v":""},{"$f":"PHONETIC(E9)","v":""}]
[null,null,"次鋒",null,null,"",""]
[null,null,"中堅",null,null,"",""]
[null,null,"副将",null,null,"",""]
[null,null,"大将",null,null,"",""]
[null,null,"補欠1",null,null,"",""]
[null,null,"補欠2",null,null,"",""]
[null,null,"補欠3",null,null,{"$f":"PHONETIC(D16)","v":""},{"$f":"PHONETIC(E16)","v":""}]
[]
[]
[]
[null,"男子個人",null,null,{"$f":"$E$6","v":"第73回大阪私立高等学校総合体育大会　申込書"}]
[null,null,"階　級","選手名（ふりがな）",null,null,null,"学年","段位","体重(kg)","身長(cm)","生年月日"]
[null,null,null,"姓","名","せい","めい",null,null,null,null,"年(西暦)","月","日"]
[null,{"$f":"IF(COUNTBLANK(D23:N23)=11,\"\",ROW())","v":""},60,null,null,{"$f":"PHONETIC(D23)","v":""},{"$f":"PHONETIC(E23)","v":""}]
[null,{"$f":"IF(COUNTBLANK(D24:N24)=11,\"\",ROW())","v":""},66,null,null,"",""]
[null,"",73,null,null,"",""]
[null,"",81,null,null,"",""]
[null,"",90,null,null,"",""]
[null,"",100,null,null,"",""]
[null,"","100+",null,null,"",""]
[null,{"$f":"IF(COUNTBLANK(C30:N30)=12,\"\",ROW())","v":""}]
[null,""]
[null,""]
[null,""]
[null,""]
[null,""]
[null,""]

{"sheet":"女子入力シート","index":3,"n_rows":33,"n_cols":14,"rows_kept":33,"cut":false,"hidden":false,"merged":[[17,2,18,2],[17,7,18,7],[17,8,18,8],[17,9,18,9],[17,10,18,10],[1,11,2,13],[3,12,3,13],[4,12,4,13],[6,7,7,7],[6,8,7,8],[6,9,7,9],[6,10,7,10]]}
[]
[null,"学校番号：",null,{"$f":"IF(C2=\"\",\"学校番号が入力されていません。\",IF(C2=598,VLOOKUP(C2,校名[],2,FALSE),VLOOKUP(C2,校名[],2,FALSE)&\"高等学校\"))","v":"学校番号が入力されていません。"},null,null,null,null,null,null,null,"【入　力　項　目】"]
[]
[null,null,"監督名：",null,"校長名：",null,null,null,null,null,null,"必須入力","リストから\n選択"]
[null,"※ふりがなは自動で入力されますが、違う場合は直接入力してください。",null,null,null,null,null,null,null,null,null,"直接入力","入力済み"]
[null,"女子団体",null,null,{"$f":"男子入力シート!E6","v":"第73回大阪私立高等学校総合体育大会　申込書"}]
[null,null,"抽選番号","選手名（ふりがな）",null,null,null,"学年","段位","体重(kg)","身長(cm)","生年月日"]
[null,null,null,"姓","名","せい","めい",null,null,null,null,"年(西暦)","月","日"]
[null,null,"先鋒",null,null,{"$f":"PHONETIC(D9)","v":""},""]
[null,null,"中堅",null,null,"",""]
[null,null,"大将",null,null,"",""]
[null,null,"補欠1",null,null,"",""]
[null,null,"補欠2",null,null,"",""]
[]
[]
[]
[null,"女子個人",null,null,{"$f":"$E$6","v":"第73回大阪私立高等学校総合体育大会　申込書"}]
[null,null,"階　級","選手名（ふりがな）",null,null,null,"学年","段位","体重(kg)","身長(cm)","生年月日"]
[null,null,null,"姓","名","せい","めい",null,null,null,null,"年(西暦)","月","日"]
[null,{"$f":"IF(COUNTBLANK(C20:N20)=12,\"\",ROW())","v":""},null,null,null,{"$f":"PHONETIC(D20)","v":""},{"$f":"PHONETIC(E20)","v":""}]
[null,{"$f":"IF(COUNTBLANK(C21:N21)=12,\"\",ROW())","v":""},null,null,null,{"$f":"PHONETIC(D21)","v":""},""]
[null,"",null,null,null,"",""]
[null,"",null,null,null,"",""]
[null,"",null,null,null,"",""]
[null,"",null,null,null,"",""]
[null,""]
[null,""]
[null,""]
[null,""]
[null,""]
[null,""]
[null,""]
[null,""]

{"sheet":"男子団体メンバー用紙印刷","index":4,"n_rows":23,"n_cols":12,"rows_kept":23,"cut":false,"hidden":false,"merged":[[1,6,1,9],[2,6,17,9],[19,10,21,10]]}
[]
[1," ",{"$f":"IF(男子入力シート!$C$2=\"\",\"\",VLOOKUP(男子入力シート!$C$2,校名[],3,FALSE))","v":""},1,null,null,{"$f":"INDEX(B2:B10,MATCH(K20,A2:A10))","v":" "}]
[2,"先",{"$f":"IF(男子入力シート!D9=\"\",\"\",男子入力シート!D9)","v":""},{"$f":"IF(C3=\"\",1,COUNTIF($C$3:$C$10,C3))","v":1},{"$f":"IF(D3>=2,LEFT(男子入力シート!E9,1),\"\")","v":""},null,{"$f":"INDEX(C2:C10,MATCH(K20,A2:A10))","v":""}]
[3,"次",{"$f":"IF(男子入力シート!D10=\"\",\"\",男子入力シート!D10)","v":""},1,{"$f":"IF(D4>=2,LEFT(男子入力シート!E10,1),\"\")","v":""}]
[4,"中",{"$f":"IF(男子入力シート!D11=\"\",\"\",男子入力シート!D11)","v":""},1,{"$f":"IF(D5>=2,LEFT(男子入力シート!E11,1),\"\")","v":""}]
[5,"副",{"$f":"IF(男子入力シート!D12=\"\",\"\",男子入力シート!D12)","v":""},1,{"$f":"IF(D6>=2,LEFT(男子入力シート!E12,1),\"\")","v":""}]
[6,"大",{"$f":"IF(男子入力シート!D13=\"\",\"\",男子入力シート!D13)","v":""},1,{"$f":"IF(D7>=2,LEFT(男子入力シート!E13,1),\"\")","v":""}]
[7," ",{"$f":"IF(男子入力シート!D14=\"\",\"\",男子入力シート!D14)","v":""},1,{"$f":"IF(D8>=2,LEFT(男子入力シート!E14,1),\"\")","v":""}]
[8," ",{"$f":"IF(男子入力シート!D15=\"\",\"\",男子入力シート!D15)","v":""},{"$f":"IF(C9=\"\",1,COUNTIF($C$3:$C$10,C9))","v":1},{"$f":"IF(D9>=2,LEFT(男子入力シート!E15,1),\"\")","v":""}]
[9," ",{"$f":"IF(男子入力シート!D16=\"\",\"\",男子入力シート!D16)","v":""},1,{"$f":"IF(D10>=2,LEFT(男子入力シート!E16,1),\"\")","v":""}]
[]
[]
[]
[]
[]
[]
[]
[]
[]
[null,null,null,null,null,null,null,null,null,null,1,"←手動の場合は↑の対応する数字を入れてください"]
[]
[null,null,null,null,null,null,null,null,null,null,null,"入力ページに戻る"]
[null,null,null,null,null,null,null,null,"同名選手の名前の1文字が出ない場合は印刷後、直接用紙にお書きください。"]

{"sheet":"女子団体メンバー用紙印刷","index":5,"n_rows":23,"n_cols":12,"rows_kept":23,"cut":false,"hidden":false,"merged":[[1,6,1,9],[2,6,17,9],[19,10,21,10]]}
[]
[1," ",{"$f":"IF(女子入力シート!$C$2=\"\",\"\",VLOOKUP(女子入力シート!$C$2,校名[],3,FALSE))","v":""},1,null,null,{"$f":"INDEX(B2:B10,MATCH(K20,A2:A10))","v":" "}]
[2,"先",{"$f":"IF(女子入力シート!D9=\"\",\"\",女子入力シート!D9)","v":""},{"$f":"IF(C3=\"\",1,COUNTIF($C$3:$C$10,C3))","v":1},{"$f":"IF(D3>=2,LEFT(女子入力シート!E9,1),\"\")","v":""},null,{"$f":"INDEX(C2:C10,MATCH(K20,A2:A10))","v":""}]
[3,"中",{"$f":"IF(女子入力シート!D10=\"\",\"\",女子入力シート!D10)","v":""},1,{"$f":"IF(D4>=2,LEFT(女子入力シート!E10,1),\"\")","v":""}]
[4,"大",{"$f":"IF(女子入力シート!D11=\"\",\"\",女子入力シート!D11)","v":""},1,{"$f":"IF(D5>=2,LEFT(女子入力シート!E11,1),\"\")","v":""}]
[5,null,{"$f":"IF(女子入力シート!D12=\"\",\"\",女子入力シート!D12)","v":""},1,{"$f":"IF(D6>=2,LEFT(女子入力シート!E12,1),\"\")","v":""}]
[6,null,{"$f":"IF(女子入力シート!D13=\"\",\"\",女子入力シート!D13)","v":""},1,{"$f":"IF(D7>=2,LEFT(女子入力シート!E13,1),\"\")","v":""}]
[null," ",{"$f":"IF(女子入力シート!D14=\"\",\"\",女子入力シート!D14)","v":""},1,{"$f":"IF(D8>=2,LEFT(女子入力シート!E14,1),\"\")","v":""}]
[null," "]
[null," "]
[]
[]
[]
[]
[]
[]
[]
[]
[]
[null,null,null,null,null,null,null,null,null,null,1,"←手動の場合は↑の対応する数字を入れてください"]
[]
[null,null,null,null,null,null,null,null,null,null,null,"入力ページに戻る"]
[null,null,null,null,null,null,null,null,"同名選手の名前の1文字が出ない場合は印刷後、直接用紙にお書きください。"]

{"sheet":"申込書＿男子団体","index":6,"n_rows":22,"n_cols":10,"rows_kept":22,"cut":false,"hidden":false,"merged":[[18,8,19,8],[18,9,19,9],[19,2,19,3],[18,1,19,1],[18,2,18,3],[18,5,19,5],[18,6,19,6],[18,7,19,7],[6,1,7,1],[6,2,6,3],[7,2,7,3],[3,2,3,4],[2,2,2,4],[3,5,3,7],[3,8,3,9],[5,2,5,4],[4,2,4,4],[4,9,5,9],[4,8,5,8],[4,7,5,7],[4,6,5,6],[4,5,5,5],[10,8,11,8],[2,8,2,9],[2,5,2,7],[8,1,9,1],[8,2,8,3],[8,5,9,5],[8,6,9,6],[8,7,9,7],[8,8,9,8],[8,9,9,9],[9,2,9,3],[6,9,7,9],[6,8,7,8],[6,7,7,7],[6,6,7,6],[6,5,7,5],[14,8,15,8],[10,9,11,9],[11,2,11,3],[12,1,13,1],[12,2,12,3],[12,5,13,5],[12,6,13,6],[12,7,13,7],[12,8,13,8],[12,9,13,9],[13,2,13,3],[10,1,11,1],[10,2,10,3],[10,5,11,5],[10,6,11,6],[10,7,11,7],[1,3,1,7],[14,9,15,9],[15,2,15,3],[16,1,17,1],[16,2,16,3],[16,5,17,5],[16,6,17,6],[16,7,17,7],[16,8,17,8],[16,9,17,9],[17,2,17,3],[14,1,15,1],[14,2,14,3],[14,5,15,5],[14,6,15,6],[14,7,15,7],[20,8,21,8],[20,9,21,9],[21,2,21,3],[20,1,21,1],[20,2,20,3],[20,5,21,5],[20,6,21,6],[20,7,21,7]]}
[]
[null,"※抽選番号",null,{"$f":"男子入力シート!E6","v":"第73回大阪私立高等学校総合体育大会　申込書"},null,null,null,null,null,{"$f":"NOW()","v":"2026-03-24T17:32:13.950"}]
[null,"学校番号","学　　校　　名",null,null,"監　督　名",null,null,"校　長　名"]
[null,{"$f":"IF(男子入力シート!$C$2=\"\",\"\",男子入力シート!$C$2)","v":""},{"$f":"IF(ISERROR(男子入力シート!$D$2),\"\",男子入力シート!$D$2)","v":"学校番号が入力されていません。"},null,null,{"$f":"IF(男子入力シート!$D$4=\"\",\"監督名が入力されていません\",男子入力シート!$D$4)","v":"監督名が入力されていません"},null,null,{"$f":"IF(男子入力シート!$F$4=\"\",\"校長名が入力されていません\",男子入力シート!$F$4)","v":"校長名が入力されていません"}]
[null,null,"ふ　り　が　な",null,null,"学年","段位","体重(kg)","身長(cm)","生年月日(西暦)"]
[null,null,"選　　手　　名"]
[null,"先鋒",{"$f":"IF(男子入力シート!F9=\"\",\"\",男子入力シート!F9)","v":""},null,{"$f":"IF(男子入力シート!G9=\"\",\"\",男子入力シート!G9)","v":""},{"$f":"IF(男子入力シート!H9=\"\",\"\",男子入力シート!H9)","v":""},{"$f":"IF(男子入力シート!I9=\"\",\"\",男子入力シート!I9)","v":""},{"$f":"IF(男子入力シート!J9=\"\",\"\",男子入力シート!J9)","v":""},{"$f":"IF(男子入力シート!K9=\"\",\"\",男子入力シート!K9)","v":""},{"$f":"IF(OR(男子入力シート!L9=\"\",男子入力シート!M9=\"\",男子入力シート!N9=\"\"),\"\",男子入力シート!L9&\"・\"&男子入力シート!M9&\"・\"&男子入力シート!N9)","v":""}]
[null,null,{"$f":"IF(男子入力シート!D9=\"\",\"\",男子入力シート!D9)","v":""},null,{"$f":"IF(男子入力シート!E9=\"\",\"\",男子入力シート!E9)","v":""}]
[null,"次鋒",{"$f":"IF(男子入力シート!F10=\"\",\"\",男子入力シート!F10)","v":""},null,{"$f":"IF(男子入力シート!G10=\"\",\"\",男子入力シート!G10)","v":""},{"$f":"IF(男子入力シート!H10=\"\",\"\",男子入力シート!H10)","v":""},{"$f":"IF(男子入力シート!I10=\"\",\"\",男子入力シート!I10)","v":""},{"$f":"IF(男子入力シート!J10=\"\",\"\",男子入力シート!J10)","v":""},{"$f":"IF(男子入力シート!K10=\"\",\"\",男子入力シート!K10)","v":""},{"$f":"IF(OR(男子入力シート!L10=\"\",男子入力シート!M10=\"\",男子入力シート!N10=\"\"),\"\",男子入力シート!L10&\"・\"&男子入力シート!M10&\"・\"&男子入力シート!N10)","v":""}]
[null,null,{"$f":"IF(男子入力シート!D10=\"\",\"\",男子入力シート!D10)","v":""},null,{"$f":"IF(男子入力シート!E10=\"\",\"\",男子入力シート!E10)","v":""}]
[null,"中堅",{"$f":"IF(男子入力シート!F11=\"\",\"\",男子入力シート!F11)","v":""},null,{"$f":"IF(男子入力シート!G11=\"\",\"\",男子入力シート!G11)","v":""},{"$f":"IF(男子入力シート!H11=\"\",\"\",男子入力シート!H11)","v":""},{"$f":"IF(男子入力シート!I11=\"\",\"\",男子入力シート!I11)","v":""},{"$f":"IF(男子入力シート!J11=\"\",\"\",男子入力シート!J11)","v":""},{"$f":"IF(男子入力シート!K11=\"\",\"\",男子入力シート!K11)","v":""},{"$f":"IF(OR(男子入力シート!L11=\"\",男子入力シート!M11=\"\",男子入力シート!N11=\"\"),\"\",男子入力シート!L11&\"・\"&男子入力シート!M11&\"・\"&男子入力シート!N11)","v":""}]
[null,null,{"$f":"IF(男子入力シート!D11=\"\",\"\",男子入力シート!D11)","v":""},null,{"$f":"IF(男子入力シート!E11=\"\",\"\",男子入力シート!E11)","v":""}]
[null,"副将",{"$f":"IF(男子入力シート!F12=\"\",\"\",男子入力シート!F12)","v":""},null,{"$f":"IF(男子入力シート!G12=\"\",\"\",男子入力シート!G12)","v":""},{"$f":"IF(男子入力シート!H12=\"\",\"\",男子入力シート!H12)","v":""},{"$f":"IF(男子入力シート!I12=\"\",\"\",男子入力シート!I12)","v":""},{"$f":"IF(男子入力シート!J12=\"\",\"\",男子入力シート!J12)","v":""},{"$f":"IF(男子入力シート!K12=\"\",\"\",男子入力シート!K12)","v":""},{"$f":"IF(OR(男子入力シート!L12=\"\",男子入力シート!M12=\"\",男子入力シート!N12=\"\"),\"\",男子入力シート!L12&\"・\"&男子入力シート!M12&\"・\"&男子入力シート!N12)","v":""}]
[null,null,{"$f":"IF(男子入力シート!D12=\"\",\"\",男子入力シート!D12)","v":""},null,{"$f":"IF(男子入力シート!E12=\"\",\"\",男子入力シート!E12)","v":""}]
[null,"大将",{"$f":"IF(男子入力シート!F13=\"\",\"\",男子入力シート!F13)","v":""},null,{"$f":"IF(男子入力シート!G13=\"\",\"\",男子入力シート!G13)","v":""},{"$f":"IF(男子入力シート!H13=\"\",\"\",男子入力シート!H13)","v":""},{"$f":"IF(男子入力シート!I13=\"\",\"\",男子入力シート!I13)","v":""},{"$f":"IF(男子入力シート!J13=\"\",\"\",男子入力シート!J13)","v":""},{"$f":"IF(男子入力シート!K13=\"\",\"\",男子入力シート!K13)","v":""},{"$f":"IF(OR(男子入力シート!L13=\"\",男子入力シート!M13=\"\",男子入力シート!N13=\"\"),\"\",男子入力シート!L13&\"・\"&男子入力シート!M13&\"・\"&男子入力シート!N13)","v":""}]
[null,null,{"$f":"IF(男子入力シート!D13=\"\",\"\",男子入力シート!D13)","v":""},null,{"$f":"IF(男子入力シート!E13=\"\",\"\",男子入力シート!E13)","v":""}]
[null,"補欠1",{"$f":"IF(男子入力シート!F14=\"\",\"\",男子入力シート!F14)","v":""},null,{"$f":"IF(男子入力シート!G14=\"\",\"\",男子入力シート!G14)","v":""},{"$f":"IF(男子入力シート!H14=\"\",\"\",男子入力シート!H14)","v":""},{"$f":"IF(男子入力シート!I14=\"\",\"\",男子入力シート!I14)","v":""},{"$f":"IF(男子入力シート!J14=\"\",\"\",男子入力シート!J14)","v":""},{"$f":"IF(男子入力シート!K14=\"\",\"\",男子入力シート!K14)","v":""},{"$f":"IF(OR(男子入力シート!L14=\"\",男子入力シート!M14=\"\",男子入力シート!N14=\"\"),\"\",男子入力シート!L14&\"・\"&男子入力シート!M14&\"・\"&男子入力シート!N14)","v":""}]
[null,null,{"$f":"IF(男子入力シート!D14=\"\",\"\",男子入力シート!D14)","v":""},null,{"$f":"IF(男子入力シート!E14=\"\",\"\",男子入力シート!E14)","v":""}]
[null,"補欠2",{"$f":"IF(男子入力シート!F15=\"\",\"\",男子入力シート!F15)","v":""},null,{"$f":"IF(男子入力シート!G15=\"\",\"\",男子入力シート!G15)","v":""},{"$f":"IF(男子入力シート!H15=\"\",\"\",男子入力シート!H15)","v":""},{"$f":"IF(男子入力シート!I15=\"\",\"\",男子入力シート!I15)","v":""},{"$f":"IF(男子入力シート!J15=\"\",\"\",男子入力シート!J15)","v":""},{"$f":"IF(男子入力シート!K15=\"\",\"\",男子入力シート!K15)","v":""},{"$f":"IF(OR(男子入力シート!L15=\"\",男子入力シート!M15=\"\",男子入力シート!N15=\"\"),\"\",男子入力シート!L15&\"・\"&男子入力シート!M15&\"・\"&男子入力シート!N15)","v":""}]
[null,null,{"$f":"IF(男子入力シート!D15=\"\",\"\",男子入力シート!D15)","v":""},null,{"$f":"IF(男子入力シート!E15=\"\",\"\",男子入力シート!E15)","v":""}]
[null,"補欠3",{"$f":"IF(男子入力シート!F16=\"\",\"\",男子入力シート!F16)","v":""},null,{"$f":"IF(男子入力シート!G16=\"\",\"\",男子入力シート!G16)","v":""},{"$f":"IF(男子入力シート!H16=\"\",\"\",男子入力シート!H16)","v":""},{"$f":"IF(男子入力シート!I16=\"\",\"\",男子入力シート!I16)","v":""},{"$f":"IF(男子入力シート!J16=\"\",\"\",男子入力シート!J16)","v":""},{"$f":"IF(男子入力シート!K16=\"\",\"\",男子入力シート!K16)","v":""},{"$f":"IF(OR(男子入力シート!L16=\"\",男子入力シート!M16=\"\",男子入力シート!N16=\"\"),\"\",男子入力シート!L16&\"・\"&男子入力シート!M16&\"・\"&男子入力シート!N16)","v":""}]
[null,null,{"$f":"IF(男子入力シート!D16=\"\",\"\",男子入力シート!D16)","v":""},null,{"$f":"IF(男子入力シート!E16=\"\",\"\",男子入力シート!E16)","v":""}]

{"sheet":"申込書＿女子団体","index":7,"n_rows":16,"n_cols":10,"rows_kept":16,"cut":false,"hidden":false,"merged":[[4,9,5,9],[5,2,5,4],[1,3,1,7],[2,2,2,4],[2,5,2,7],[2,8,2,9],[3,2,3,4],[3,5,3,7],[3,8,3,9],[4,2,4,4],[4,5,5,5],[4,6,5,6],[4,7,5,7],[4,8,5,8],[6,9,7,9],[7,2,7,3],[8,1,9,1],[8,2,8,3],[8,5,9,5],[8,6,9,6],[8,7,9,7],[8,8,9,8],[8,9,9,9],[9,2,9,3],[6,1,7,1],[6,2,6,3],[6,5,7,5],[6,6,7,6],[6,7,7,7],[6,8,7,8],[10,9,11,9],[11,2,11,3],[12,1,13,1],[12,2,12,3],[12,5,13,5],[12,6,13,6],[12,7,13,7],[12,8,13,8],[12,9,13,9],[13,2,13,3],[10,1,11,1],[10,2,10,3],[10,5,11,5],[10,6,11,6],[10,7,11,7],[10,8,11,8],[14,9,15,9],[15,2,15,3],[14,1,15,1],[14,2,14,3],[14,5,15,5],[14,6,15,6],[14,7,15,7],[14,8,15,8]]}
[]
[null,"※抽選番号",null,{"$f":"女子入力シート!E6","v":"第73回大阪私立高等学校総合体育大会　申込書"},null,null,null,null,null,{"$f":"NOW()","v":"2026-03-24T17:32:13.950"}]
[null,"学校番号","学　　校　　名",null,null,"監　督　名",null,null,"校　長　名"]
[null,{"$f":"IF(女子入力シート!$C$2=\"\",\"\",女子入力シート!$C$2)","v":""},{"$f":"IF(ISERROR(女子入力シート!$D$2),\"\",女子入力シート!$D$2)","v":"学校番号が入力されていません。"},null,null,{"$f":"IF(女子入力シート!$D$4=\"\",\"監督名が入力されていません\",女子入力シート!$D$4)","v":"監督名が入力されていません"},null,null,{"$f":"IF(女子入力シート!$F$4=\"\",\"校長名が入力されていません\",女子入力シート!$F$4)","v":"校長名が入力されていません"}]
[null,null,"ふ　り　が　な",null,null,"学年","段位","体重(kg)","身長(cm)","生年月日(西暦)"]
[null,null,"選　　手　　名"]
[null,"先鋒",{"$f":"IF(女子入力シート!F9=\"\",\"\",女子入力シート!F9)","v":""},null,{"$f":"IF(女子入力シート!G9=\"\",\"\",女子入力シート!G9)","v":""},{"$f":"IF(女子入力シート!H9=\"\",\"\",女子入力シート!H9)","v":""},{"$f":"IF(女子入力シート!I9=\"\",\"\",女子入力シート!I9)","v":""},{"$f":"IF(女子入力シート!J9=\"\",\"\",女子入力シート!J9)","v":""},{"$f":"IF(女子入力シート!K9=\"\",\"\",女子入力シート!K9)","v":""},{"$f":"IF(OR(女子入力シート!L9=\"\",女子入力シート!M9=\"\",女子入力シート!N9=\"\"),\"\",女子入力シート!L9&\"・\"&女子入力シート!M9&\"・\"&女子入力シート!N9)","v":""}]
[null,null,{"$f":"IF(女子入力シート!D9=\"\",\"\",女子入力シート!D9)","v":""},null,{"$f":"IF(女子入力シート!E9=\"\",\"\",女子入力シート!E9)","v":""}]
[null,"中堅",{"$f":"IF(女子入力シート!F10=\"\",\"\",女子入力シート!F10)","v":""},null,{"$f":"IF(女子入力シート!G10=\"\",\"\",女子入力シート!G10)","v":""},{"$f":"IF(女子入力シート!H10=\"\",\"\",女子入力シート!H10)","v":""},{"$f":"IF(女子入力シート!I10=\"\",\"\",女子入力シート!I10)","v":""},{"$f":"IF(女子入力シート!J10=\"\",\"\",女子入力シート!J10)","v":""},{"$f":"IF(女子入力シート!K10=\"\",\"\",女子入力シート!K10)","v":""},{"$f":"IF(OR(女子入力シート!L10=\"\",女子入力シート!M10=\"\",女子入力シート!N10=\"\"),\"\",女子入力シート!L10&\"・\"&女子入力シート!M10&\"・\"&女子入力シート!N10)","v":""}]
[null,null,{"$f":"IF(女子入力シート!D10=\"\",\"\",女子入力シート!D10)","v":""},null,{"$f":"IF(女子入力シート!E10=\"\",\"\",女子入力シート!E10)","v":""}]
[null,"大将",{"$f":"IF(女子入力シート!F11=\"\",\"\",女子入力シート!F11)","v":""},null,{"$f":"IF(女子入力シート!G11=\"\",\"\",女子入力シート!G11)","v":""},{"$f":"IF(女子入力シート!H11=\"\",\"\",女子入力シート!H11)","v":""},{"$f":"IF(女子入力シート!I11=\"\",\"\",女子入力シート!I11)","v":""},{"$f":"IF(女子入力シート!J11=\"\",\"\",女子入力シート!J11)","v":""},{"$f":"IF(女子入力シート!K11=\"\",\"\",女子入力シート!K11)","v":""},{"$f":"IF(OR(女子入力シート!L11=\"\",女子入力シート!M11=\"\",女子入力シート!N11=\"\"),\"\",女子入力シート!L11&\"・\"&女子入力シート!M11&\"・\"&女子入力シート!N11)","v":""}]
[null,null,{"$f":"IF(女子入力シート!D11=\"\",\"\",女子入力シート!D11)","v":""},null,{"$f":"IF(女子入力シート!E11=\"\",\"\",女子入力シート!E11)","v":""}]
[null,"補欠1",{"$f":"IF(女子入力シート!F12=\"\",\"\",女子入力シート!F12)","v":""},null,{"$f":"IF(女子入力シート!G12=\"\",\"\",女子入力シート!G12)","v":""},{"$f":"IF(女子入力シート!H12=\"\",\"\",女子入力シート!H12)","v":""},{"$f":"IF(女子入力シート!I12=\"\",\"\",女子入力シート!I12)","v":""},{"$f":"IF(女子入力シート!J12=\"\",\"\",女子入力シート!J12)","v":""},{"$f":"IF(女子入力シート!K12=\"\",\"\",女子入力シート!K12)","v":""},{"$f":"IF(OR(女子入力シート!L12=\"\",女子入力シート!M12=\"\",女子入力シート!N12=\"\"),\"\",女子入力シート!L12&\"・\"&女子入力シート!M12&\"・\"&女子入力シート!N12)","v":""}]
[null,null,{"$f":"IF(女子入力シート!D12=\"\",\"\",女子入力シート!D12)","v":""},null,{"$f":"IF(女子入力シート!E12=\"\",\"\",女子入力シート!E12)","v":""}]
[null,"補欠2",{"$f":"IF(女子入力シート!F13=\"\",\"\",女子入力シート!F13)","v":""},null,{"$f":"IF(女子入力シート!G13=\"\",\"\",女子入力シート!G13)","v":""},{"$f":"IF(女子入力シート!H13=\"\",\"\",女子入力シート!H13)","v":""},{"$f":"IF(女子入力シート!I13=\"\",\"\",女子入力シート!I13)","v":""},{"$f":"IF(女子入力シート!J13=\"\",\"\",女子入力シート!J13)","v":""},{"$f":"IF(女子入力シート!K13=\"\",\"\",女子入力シート!K13)","v":""},{"$f":"IF(OR(女子入力シート!L13=\"\",女子入力シート!M13=\"\",女子入力シート!N13=\"\"),\"\",女子入力シート!L13&\"・\"&女子入力シート!M13&\"・\"&女子入力シート!N13)","v":""}]
[null,null,{"$f":"IF(女子入力シート!D13=\"\",\"\",女子入力シート!D13)","v":""},null,{"$f":"IF(女子入力シート!E13=\"\",\"\",女子入力シート!E13)","v":""}]

{"sheet":"申込書＿男子個人","index":8,"n_rows":27,"n_cols":13,"rows_kept":27,"cut":false,"hidden":false,"merged":[[24,5,24,7],[24,8,24,10],[24,11,24,12],[25,5,25,6],[26,5,26,6],[7,5,7,7],[7,8,7,10],[7,11,7,12],[8,5,8,6],[23,5,23,7],[23,8,23,10],[23,11,23,12],[9,5,9,6],[16,8,17,8],[21,6,21,10],[22,7,22,12],[4,6,4,10],[5,7,5,12],[6,5,6,7],[6,8,6,10],[6,11,6,12]]}
[]
[null,{"$f":"MAX(B3:B9)","v":0}]
[1,{"$f":"男子入力シート!B23","v":""},23]
[2,{"$f":"男子入力シート!B24","v":""},24]
[3,{"$f":"男子入力シート!B25","v":""},null,null,null,null,"個　人　試　合　申　込　書",null,null,null,null,null,{"$f":"NOW()","v":"2026-03-24T17:32:13.950"}]
[4,{"$f":"男子入力シート!B26","v":""},null,null,"※抽選番号",null,{"$f":"INDIRECT(\"男子入力シート!C\"&$C$3)&\"kg級\"","v":"60kg級"},{"$f":"男子入力シート!$E$6","v":"第73回大阪私立高等学校総合体育大会　申込書"}]
[5,{"$f":"男子入力シート!B27","v":""},null,null,"学校番号","学　　校　　名",null,null,"監　督　名",null,null,"校　長　名"]
[6,{"$f":"男子入力シート!B28","v":""},null,null,{"$f":"IF(男子入力シート!$C$2=\"\",\"\",男子入力シート!$C$2)","v":""},{"$f":"男子入力シート!$D$2","v":"学校番号が入力されていません。"},null,null,{"$f":"IF(男子入力シート!$D$4=\"\",\"監督名が入力されていません\",男子入力シート!$D$4)","v":"監督名が入力されていません"},null,null,{"$f":"IF(男子入力シート!$F$4=\"\",\"校長名が入力されていません\",男子入力シート!$F$4)","v":"校長名が入力されていません"}]
[7,{"$f":"男子入力シート!B29","v":""},null,null,"ふりがな",{"$f":"IF(INDIRECT(\"男子入力シート!F\"&$C$3)=\"\",\"\",INDIRECT(\"男子入力シート!F\"&$C$3))","v":""},null,{"$f":"IF(INDIRECT(\"男子入力シート!G\"&$C$3)=\"\",\"\",INDIRECT(\"男子入力シート!G\"&$C$3))","v":""},"学年","段位","体重(kg)","身長(cm)","生年月日(西暦)"]
[null,null,null,null,"選手名",{"$f":"IF(INDIRECT(\"男子入力シート!D\"&$C$3)=\"\",\"\",INDIRECT(\"男子入力シート!D\"&$C$3))","v":""},null,{"$f":"IF(INDIRECT(\"男子入力シート!E\"&$C$3)=\"\",\"\",INDIRECT(\"男子入力シート!E\"&$C$3))","v":""},{"$f":"IF(INDIRECT(\"男子入力シート!H\"&$C$3)=\"\",\"\",INDIRECT(\"男子入力シート!H\"&$C$3))","v":""},{"$f":"IF(INDIRECT(\"男子入力シート!I\"&$C$3)=\"\",\"\",INDIRECT(\"男子入力シート!I\"&$C$3))","v":""},{"$f":"IF(INDIRECT(\"男子入力シート!J\"&$C$3)=\"\",\"\",INDIRECT(\"男子入力シート!J\"&$C$3))","v":""},{"$f":"IF(INDIRECT(\"男子入力シート!K\"&$C$3)=\"\",\"\",INDIRECT(\"男子入力シート!K\"&$C$3))","v":""},{"$f":"IF(OR(INDIRECT(\"男子入力シート!L\"&$C$3)=\"\",INDIRECT(\"男子入力シート!M\"&$C$3)=\"\",INDIRECT(\"男子入力シート!N\"&$C$3)=\"\"),\"\",INDIRECT(\"男子入力シート!L\"&$C$3)&\"・\"&INDIRECT(\"男子入力シート!M\"&$C$3)&\"・\"&INDIRECT(\"男子入力シート!N\"&$C$3))","v":""}]
[]
[]
[]
[]
[]
[]
[null,null,null,null,null,null,null,null,"(キリトリ)"]
[]
[]
[]
[]
[null,null,null,null,null,null,"個　人　試　合　申　込　書",null,null,null,null,null,{"$f":"NOW()","v":"2026-03-24T17:32:13.950"}]
[null,null,null,null,"※抽選番号",null,{"$f":"INDIRECT(\"男子入力シート!C\"&$C$4)&\"kg級\"","v":"66kg級"},{"$f":"男子入力シート!$E$6","v":"第73回大阪私立高等学校総合体育大会　申込書"}]
[null,null,null,null,"学校番号","学　　校　　名",null,null,"監　督　名",null,null,"校　長　名"]
[null,null,null,null,{"$f":"IF(男子入力シート!$C$2=\"\",\"\",男子入力シート!$C$2)","v":""},{"$f":"男子入力シート!$D$2","v":"学校番号が入力されていません。"},null,null,{"$f":"IF(男子入力シート!$D$4=\"\",\"監督名が入力されていません\",男子入力シート!$D$4)","v":"監督名が入力されていません"},null,null,{"$f":"IF(男子入力シート!$F$4=\"\",\"校長名が入力されていません\",男子入力シート!$F$4)","v":"校長名が入力されていません"}]
[null,null,null,null,"ふりがな",{"$f":"IF(INDIRECT(\"男子入力シート!F\"&$C$4)=\"\",\"\",INDIRECT(\"男子入力シート!F\"&$C$4))","v":""},null,{"$f":"IF(INDIRECT(\"男子入力シート!G\"&$C$4)=\"\",\"\",INDIRECT(\"男子入力シート!G\"&$C$4))","v":""},"学年","段位","体重(kg)","身長(cm)","生年月日(西暦)"]
[null,null,null,null,"選手名",{"$f":"IF(INDIRECT(\"男子入力シート!D\"&$C$4)=\"\",\"\",INDIRECT(\"男子入力シート!D\"&$C$4))","v":""},null,{"$f":"IF(INDIRECT(\"男子入力シート!E\"&$C$4)=\"\",\"\",INDIRECT(\"男子入力シート!E\"&$C$4))","v":""},{"$f":"IF(INDIRECT(\"男子入力シート!H\"&$C$4)=\"\",\"\",INDIRECT(\"男子入力シート!H\"&$C$4))","v":""},{"$f":"IF(INDIRECT(\"男子入力シート!I\"&$C$4)=\"\",\"\",INDIRECT(\"男子入力シート!I\"&$C$4))","v":""},{"$f":"IF(INDIRECT(\"男子入力シート!J\"&$C$4)=\"\",\"\",INDIRECT(\"男子入力シート!J\"&$C$4))","v":""},{"$f":"IF(INDIRECT(\"男子入力シート!K\"&$C$4)=\"\",\"\",INDIRECT(\"男子入力シート!K\"&$C$4))","v":""},{"$f":"IF(OR(INDIRECT(\"男子入力シート!L\"&$C$4)=\"\",INDIRECT(\"男子入力シート!M\"&$C$4)=\"\",INDIRECT(\"男子入力シート!N\"&$C$4)=\"\"),\"\",INDIRECT(\"男子入力シート!L\"&$C$4)&\"・\"&INDIRECT(\"男子入力シート!M\"&$C$4)&\"・\"&INDIRECT(\"男子入力シート!N\"&$C$4))","v":""}]

{"sheet":"申込書＿女子個人","index":9,"n_rows":27,"n_cols":13,"rows_kept":27,"cut":false,"hidden":false,"merged":[[23,5,23,7],[23,8,23,10],[23,11,23,12],[4,6,4,10],[5,7,5,12],[6,5,6,7],[6,8,6,10],[6,11,6,12],[7,5,7,7],[7,8,7,10],[7,11,7,12],[8,5,8,6],[9,5,9,6],[16,8,17,8],[21,6,21,10],[22,7,22,12],[24,5,24,7],[24,8,24,10],[24,11,24,12],[25,5,25,6],[26,5,26,6]]}
[]
[null,{"$f":"MAX(B3:B16)","v":0}]
[1,{"$f":"女子入力シート!B20","v":""},20]
[2,{"$f":"女子入力シート!B21","v":""},21]
[3,{"$f":"女子入力シート!B22","v":""},null,null,null,null,"個　人　試　合　申　込　書",null,null,null,null,null,{"$f":"NOW()","v":"2026-03-24T17:32:13.950"}]
[4,{"$f":"女子入力シート!B23","v":""},null,null,"※抽選番号",null,{"$f":"IF(INDIRECT(\"女子入力シート!C\"&$C$3)=\"無差別\",\"無差別\",INDIRECT(\"女子入力シート!C\"&$C$3)&\"kg級\")","v":"kg級"},{"$f":"女子入力シート!$E$6","v":"第73回大阪私立高等学校総合体育大会　申込書"}]
[5,{"$f":"女子入力シート!B24","v":""},null,null,"学校番号","学　　校　　名",null,null,"監　督　名",null,null,"校　長　名"]
[6,{"$f":"女子入力シート!B25","v":""},null,null,{"$f":"IF(女子入力シート!$C$2=\"\",\"\",女子入力シート!$C$2)","v":""},{"$f":"女子入力シート!$D$2","v":"学校番号が入力されていません。"},null,null,{"$f":"IF(女子入力シート!$D$4=\"\",\"監督名が入力されていません\",女子入力シート!$D$4)","v":"監督名が入力されていません"},null,null,{"$f":"IF(女子入力シート!$F$4=\"\",\"校長名が入力されていません\",女子入力シート!$F$4)","v":"校長名が入力されていません"}]
[null,null,null,null,"ふりがな",{"$f":"IF(INDIRECT(\"女子入力シート!F\"&$C$3)=\"\",\"\",INDIRECT(\"女子入力シート!F\"&$C$3))","v":""},null,{"$f":"IF(INDIRECT(\"女子入力シート!G\"&$C$3)=\"\",\"\",INDIRECT(\"女子入力シート!G\"&$C$3))","v":""},"学年","段位","体重(kg)","身長(cm)","生年月日(西暦)"]
[null,null,null,null,"選手名",{"$f":"IF(INDIRECT(\"女子入力シート!D\"&$C$3)=\"\",\"\",INDIRECT(\"女子入力シート!D\"&$C$3))","v":""},null,{"$f":"IF(INDIRECT(\"女子入力シート!E\"&$C$3)=\"\",\"\",INDIRECT(\"女子入力シート!E\"&$C$3))","v":""},{"$f":"IF(INDIRECT(\"女子入力シート!H\"&$C$3)=\"\",\"\",INDIRECT(\"女子入力シート!H\"&$C$3))","v":""},{"$f":"IF(INDIRECT(\"女子入力シート!I\"&$C$3)=\"\",\"\",INDIRECT(\"女子入力シート!I\"&$C$3))","v":""},{"$f":"IF(INDIRECT(\"女子入力シート!J\"&$C$3)=\"\",\"\",INDIRECT(\"女子入力シート!J\"&$C$3))","v":""},{"$f":"IF(INDIRECT(\"女子入力シート!K\"&$C$3)=\"\",\"\",INDIRECT(\"女子入力シート!K\"&$C$3))","v":""},{"$f":"IF(OR(INDIRECT(\"女子入力シート!L\"&$C$3)=\"\",INDIRECT(\"女子入力シート!M\"&$C$3)=\"\",INDIRECT(\"女子入力シート!N\"&$C$3)=\"\"),\"\",INDIRECT(\"女子入力シート!L\"&$C$3)&\"・\"&INDIRECT(\"女子入力シート!M\"&$C$3)&\"・\"&INDIRECT(\"女子入力シート!N\"&$C$3))","v":""}]
[]
[]
[]
[]
[]
[]
[null,null,null,null,null,null,null,null,"(キリトリ)"]
[]
[]
[]
[]
[null,null,null,null,null,null,"個　人　試　合　申　込　書",null,null,null,null,null,{"$f":"NOW()","v":"2026-03-24T17:32:13.950"}]
[null,null,null,null,"※抽選番号",null,{"$f":"IF(INDIRECT(\"女子入力シート!C\"&$C$4)=\"無差別\",\"無差別\",INDIRECT(\"女子入力シート!C\"&$C$4)&\"kg級\")","v":"kg級"},{"$f":"女子入力シート!$E$6","v":"第73回大阪私立高等学校総合体育大会　申込書"}]
[null,null,null,null,"学校番号","学　　校　　名",null,null,"監　督　名",null,null,"校　長　名"]
[null,null,null,null,{"$f":"IF(女子入力シート!$C$2=\"\",\"\",女子入力シート!$C$2)","v":""},{"$f":"女子入力シート!$D$2","v":"学校番号が入力されていません。"},null,null,{"$f":"IF(女子入力シート!$D$4=\"\",\"監督名が入力されていません\",女子入力シート!$D$4)","v":"監督名が入力されていません"},null,null,{"$f":"IF(女子入力シート!$F$4=\"\",\"校長名が入力されていません\",女子入力シート!$F$4)","v":"校長名が入力されていません"}]
[null,null,null,null,"ふりがな",{"$f":"IF(INDIRECT(\"女子入力シート!F\"&$C$4)=\"\",\"\",INDIRECT(\"女子入力シート!F\"&$C$4))","v":""},null,{"$f":"IF(INDIRECT(\"女子入力シート!G\"&$C$4)=\"\",\"\",INDIRECT(\"女子入力シート!G\"&$C$4))","v":""},"学年","段位","体重(kg)","身長(cm)","生年月日(西暦)"]
[null,null,null,null,"選手名",{"$f":"IF(INDIRECT(\"女子入力シート!D\"&$C$4)=\"\",\"\",INDIRECT(\"女子入力シート!D\"&$C$4))","v":""},null,{"$f":"IF(INDIRECT(\"女子入力シート!E\"&$C$4)=\"\",\"\",INDIRECT(\"女子入力シート!E\"&$C$4))","v":""},{"$f":"IF(INDIRECT(\"女子入力シート!H\"&$C$4)=\"\",\"\",INDIRECT(\"女子入力シート!H\"&$C$4))","v":""},{"$f":"IF(INDIRECT(\"女子入力シート!I\"&$C$4)=\"\",\"\",INDIRECT(\"女子入力シート!I\"&$C$4))","v":""},{"$f":"IF(INDIRECT(\"女子入力シート!J\"&$C$4)=\"\",\"\",INDIRECT(\"女子入力シート!J\"&$C$4))","v":""},{"$f":"IF(INDIRECT(\"女子入力シート!K\"&$C$4)=\"\",\"\",INDIRECT(\"女子入力シート!K\"&$C$4))","v":""},{"$f":"IF(OR(INDIRECT(\"女子入力シート!L\"&$C$4)=\"\",INDIRECT(\"女子入力シート!M\"&$C$4)=\"\",INDIRECT(\"女子入力シート!N\"&$C$4)=\"\"),\"\",INDIRECT(\"女子入力シート!L\"&$C$4)&\"・\"&INDIRECT(\"女子入力シート!M\"&$C$4)&\"・\"&INDIRECT(\"女子入力シート!N\"&$C$4))","v":""}]

{"sheet":"申込選手一覧（個人）","index":10,"n_rows":21,"n_cols":10,"rows_kept":21,"cut":false,"hidden":false,"merged":[]}
[null,"階級","学校名","エントリー用","姓","名","ふりがな","学年","段位","学校番号"]
[1,{"$f":"IF(男子入力シート!C23=\"\",\"\",男子入力シート!C23)","v":60},{"$f":"IF(E2=\"\",\"\",VLOOKUP(男子入力シート!$C$2,校名[],3,FALSE))","v":""},{"$f":"IF(E2=\"\",\"\",E2&\"　\"&F2&\"（\"&I2&\"）\")","v":""},{"$f":"IF(男子入力シート!D23=\"\",\"\",男子入力シート!D23)","v":""},{"$f":"IF(男子入力シート!E23=\"\",\"\",男子入力シート!E23)","v":""},{"$f":"IF(E2=\"\",\"\",男子入力シート!F23&\"　\"&男子入力シート!G23)","v":""},{"$f":"IF(E2=\"\",\"\",男子入力シート!H23)","v":""},{"$f":"IF(E2=\"\",\"\",IF(男子入力シート!I23=0,\"無\",男子入力シート!I23))","v":""},{"$f":"IF(E2=\"\",\"\",男子入力シート!$C$2)","v":""}]
[2,{"$f":"IF(男子入力シート!C24=\"\",\"\",男子入力シート!C24)","v":66},{"$f":"IF(E3=\"\",\"\",VLOOKUP(男子入力シート!$C$2,校名[],3,FALSE))","v":""},"",{"$f":"IF(男子入力シート!D24=\"\",\"\",男子入力シート!D24)","v":""},{"$f":"IF(男子入力シート!E24=\"\",\"\",男子入力シート!E24)","v":""},{"$f":"IF(E3=\"\",\"\",男子入力シート!F24&\"　\"&男子入力シート!G24)","v":""},{"$f":"IF(E3=\"\",\"\",男子入力シート!H24)","v":""},{"$f":"IF(E3=\"\",\"\",IF(男子入力シート!I24=0,\"無\",男子入力シート!I24))","v":""},{"$f":"IF(E3=\"\",\"\",男子入力シート!$C$2)","v":""}]
[3,{"$f":"IF(男子入力シート!C25=\"\",\"\",男子入力シート!C25)","v":73},{"$f":"IF(E4=\"\",\"\",VLOOKUP(男子入力シート!$C$2,校名[],3,FALSE))","v":""},"",{"$f":"IF(男子入力シート!D25=\"\",\"\",男子入力シート!D25)","v":""},{"$f":"IF(男子入力シート!E25=\"\",\"\",男子入力シート!E25)","v":""},{"$f":"IF(E4=\"\",\"\",男子入力シート!F25&\"　\"&男子入力シート!G25)","v":""},{"$f":"IF(E4=\"\",\"\",男子入力シート!H25)","v":""},{"$f":"IF(E4=\"\",\"\",IF(男子入力シート!I25=0,\"無\",男子入力シート!I25))","v":""},{"$f":"IF(E4=\"\",\"\",男子入力シート!$C$2)","v":""}]
[4,{"$f":"IF(男子入力シート!C26=\"\",\"\",男子入力シート!C26)","v":81},{"$f":"IF(E5=\"\",\"\",VLOOKUP(男子入力シート!$C$2,校名[],3,FALSE))","v":""},"",{"$f":"IF(男子入力シート!D26=\"\",\"\",男子入力シート!D26)","v":""},{"$f":"IF(男子入力シート!E26=\"\",\"\",男子入力シート!E26)","v":""},{"$f":"IF(E5=\"\",\"\",男子入力シート!F26&\"　\"&男子入力シート!G26)","v":""},{"$f":"IF(E5=\"\",\"\",男子入力シート!H26)","v":""},{"$f":"IF(E5=\"\",\"\",IF(男子入力シート!I26=0,\"無\",男子入力シート!I26))","v":""},{"$f":"IF(E5=\"\",\"\",男子入力シート!$C$2)","v":""}]
[5,{"$f":"IF(男子入力シート!C27=\"\",\"\",男子入力シート!C27)","v":90},{"$f":"IF(E6=\"\",\"\",VLOOKUP(男子入力シート!$C$2,校名[],3,FALSE))","v":""},"",{"$f":"IF(男子入力シート!D27=\"\",\"\",男子入力シート!D27)","v":""},{"$f":"IF(男子入力シート!E27=\"\",\"\",男子入力シート!E27)","v":""},{"$f":"IF(E6=\"\",\"\",男子入力シート!F27&\"　\"&男子入力シート!G27)","v":""},{"$f":"IF(E6=\"\",\"\",男子入力シート!H27)","v":""},{"$f":"IF(E6=\"\",\"\",IF(男子入力シート!I27=0,\"無\",男子入力シート!I27))","v":""},{"$f":"IF(E6=\"\",\"\",男子入力シート!$C$2)","v":""}]
[6,{"$f":"IF(男子入力シート!C28=\"\",\"\",男子入力シート!C28)","v":100},{"$f":"IF(E7=\"\",\"\",VLOOKUP(男子入力シート!$C$2,校名[],3,FALSE))","v":""},"",{"$f":"IF(男子入力シート!D28=\"\",\"\",男子入力シート!D28)","v":""},{"$f":"IF(男子入力シート!E28=\"\",\"\",男子入力シート!E28)","v":""},{"$f":"IF(E7=\"\",\"\",男子入力シート!F28&\"　\"&男子入力シート!G28)","v":""},{"$f":"IF(E7=\"\",\"\",男子入力シート!H28)","v":""},{"$f":"IF(E7=\"\",\"\",IF(男子入力シート!I28=0,\"無\",男子入力シート!I28))","v":""},{"$f":"IF(E7=\"\",\"\",男子入力シート!$C$2)","v":""}]
[7,{"$f":"IF(男子入力シート!C29=\"\",\"\",男子入力シート!C29)","v":"100+"},{"$f":"IF(E8=\"\",\"\",VLOOKUP(男子入力シート!$C$2,校名[],3,FALSE))","v":""},"",{"$f":"IF(男子入力シート!D29=\"\",\"\",男子入力シート!D29)","v":""},{"$f":"IF(男子入力シート!E29=\"\",\"\",男子入力シート!E29)","v":""},{"$f":"IF(E8=\"\",\"\",男子入力シート!F29&\"　\"&男子入力シート!G29)","v":""},{"$f":"IF(E8=\"\",\"\",男子入力シート!H29)","v":""},{"$f":"IF(E8=\"\",\"\",IF(男子入力シート!I29=0,\"無\",男子入力シート!I29))","v":""},{"$f":"IF(E8=\"\",\"\",男子入力シート!$C$2)","v":""}]
[8,{"$f":"IF(男子入力シート!C30=\"\",\"\",男子入力シート!C30)","v":""},{"$f":"IF(E9=\"\",\"\",VLOOKUP(男子入力シート!$C$2,校名[],3,FALSE))","v":""},"",{"$f":"IF(男子入力シート!D30=\"\",\"\",男子入力シート!D30)","v":""},{"$f":"IF(男子入力シート!E30=\"\",\"\",男子入力シート!E30)","v":""},{"$f":"IF(E9=\"\",\"\",男子入力シート!F30&\"　\"&男子入力シート!G30)","v":""},{"$f":"IF(E9=\"\",\"\",男子入力シート!H30)","v":""},{"$f":"IF(E9=\"\",\"\",IF(男子入力シート!I30=0,\"無\",男子入力シート!I30))","v":""},{"$f":"IF(E9=\"\",\"\",男子入力シート!$C$2)","v":""}]
[9,{"$f":"IF(男子入力シート!C31=\"\",\"\",男子入力シート!C31)","v":""},{"$f":"IF(E10=\"\",\"\",VLOOKUP(男子入力シート!$C$2,校名[],3,FALSE))","v":""},"",{"$f":"IF(男子入力シート!D31=\"\",\"\",男子入力シート!D31)","v":""},{"$f":"IF(男子入力シート!E31=\"\",\"\",男子入力シート!E31)","v":""},{"$f":"IF(E10=\"\",\"\",男子入力シート!F31&\"　\"&男子入力シート!G31)","v":""},{"$f":"IF(E10=\"\",\"\",男子入力シート!H31)","v":""},{"$f":"IF(E10=\"\",\"\",IF(男子入力シート!I31=0,\"無\",男子入力シート!I31))","v":""},{"$f":"IF(E10=\"\",\"\",男子入力シート!$C$2)","v":""}]
[10,{"$f":"IF(男子入力シート!C32=\"\",\"\",男子入力シート!C32)","v":""},{"$f":"IF(E11=\"\",\"\",VLOOKUP(男子入力シート!$C$2,校名[],3,FALSE))","v":""},"",{"$f":"IF(男子入力シート!D32=\"\",\"\",男子入力シート!D32)","v":""},{"$f":"IF(男子入力シート!E32=\"\",\"\",男子入力シート!E32)","v":""},{"$f":"IF(E11=\"\",\"\",男子入力シート!F32&\"　\"&男子入力シート!G32)","v":""},{"$f":"IF(E11=\"\",\"\",男子入力シート!H32)","v":""},{"$f":"IF(E11=\"\",\"\",IF(男子入力シート!I32=0,\"無\",男子入力シート!I32))","v":""},{"$f":"IF(E11=\"\",\"\",男子入力シート!$C$2)","v":""}]
[11,{"$f":"IF(男子入力シート!C33=\"\",\"\",男子入力シート!C33)","v":""},{"$f":"IF(E12=\"\",\"\",VLOOKUP(男子入力シート!$C$2,校名[],3,FALSE))","v":""},"",{"$f":"IF(男子入力シート!D33=\"\",\"\",男子入力シート!D33)","v":""},{"$f":"IF(男子入力シート!E33=\"\",\"\",男子入力シート!E33)","v":""},{"$f":"IF(E12=\"\",\"\",男子入力シート!F33&\"　\"&男子入力シート!G33)","v":""},{"$f":"IF(E12=\"\",\"\",男子入力シート!H33)","v":""},{"$f":"IF(E12=\"\",\"\",IF(男子入力シート!I33=0,\"無\",男子入力シート!I33))","v":""},{"$f":"IF(E12=\"\",\"\",男子入力シート!$C$2)","v":""}]
[12,{"$f":"IF(男子入力シート!C34=\"\",\"\",男子入力シート!C34)","v":""},{"$f":"IF(E13=\"\",\"\",VLOOKUP(男子入力シート!$C$2,校名[],3,FALSE))","v":""},"",{"$f":"IF(男子入力シート!D34=\"\",\"\",男子入力シート!D34)","v":""},{"$f":"IF(男子入力シート!E34=\"\",\"\",男子入力シート!E34)","v":""},{"$f":"IF(E13=\"\",\"\",男子入力シート!F34&\"　\"&男子入力シート!G34)","v":""},{"$f":"IF(E13=\"\",\"\",男子入力シート!H34)","v":""},{"$f":"IF(E13=\"\",\"\",IF(男子入力シート!I34=0,\"無\",男子入力シート!I34))","v":""},{"$f":"IF(E13=\"\",\"\",男子入力シート!$C$2)","v":""}]
[13,{"$f":"IF(男子入力シート!C35=\"\",\"\",男子入力シート!C35)","v":""},{"$f":"IF(E14=\"\",\"\",VLOOKUP(男子入力シート!$C$2,校名[],3,FALSE))","v":""},"",{"$f":"IF(男子入力シート!D35=\"\",\"\",男子入力シート!D35)","v":""},{"$f":"IF(男子入力シート!E35=\"\",\"\",男子入力シート!E35)","v":""},{"$f":"IF(E14=\"\",\"\",男子入力シート!F35&\"　\"&男子入力シート!G35)","v":""},{"$f":"IF(E14=\"\",\"\",男子入力シート!H35)","v":""},{"$f":"IF(E14=\"\",\"\",IF(男子入力シート!I35=0,\"無\",男子入力シート!I35))","v":""},{"$f":"IF(E14=\"\",\"\",男子入力シート!$C$2)","v":""}]
[14,{"$f":"IF(男子入力シート!C36=\"\",\"\",男子入力シート!C36)","v":""},{"$f":"IF(E15=\"\",\"\",VLOOKUP(男子入力シート!$C$2,校名[],3,FALSE))","v":""},"",{"$f":"IF(男子入力シート!D36=\"\",\"\",男子入力シート!D36)","v":""},{"$f":"IF(男子入力シート!E36=\"\",\"\",男子入力シート!E36)","v":""},{"$f":"IF(E15=\"\",\"\",男子入力シート!F36&\"　\"&男子入力シート!G36)","v":""},{"$f":"IF(E15=\"\",\"\",男子入力シート!H36)","v":""},{"$f":"IF(E15=\"\",\"\",IF(男子入力シート!I36=0,\"無\",男子入力シート!I36))","v":""},{"$f":"IF(E15=\"\",\"\",男子入力シート!$C$2)","v":""}]
[1,{"$f":"IF(女子入力シート!C20=\"\",\"\",女子入力シート!C20)","v":""},{"$f":"IF(E16=\"\",\"\",VLOOKUP(女子入力シート!$C$2,校名[],3,FALSE))","v":""},{"$f":"IF(E16=\"\",\"\",E16&\"　\"&F16&\"（\"&I16&\"）\")","v":""},{"$f":"IF(女子入力シート!D20=\"\",\"\",女子入力シート!D20)","v":""},{"$f":"IF(女子入力シート!E20=\"\",\"\",女子入力シート!E20)","v":""},{"$f":"IF(E16=\"\",\"\",女子入力シート!F20&\"　\"&女子入力シート!G20)","v":""},{"$f":"IF(E16=\"\",\"\",女子入力シート!H20)","v":""},{"$f":"IF(E16=\"\",\"\",IF(女子入力シート!I20=0,\"無\",女子入力シート!I20))","v":""},{"$f":"IF(E16=\"\",\"\",女子入力シート!$C$2)","v":""}]
[2,{"$f":"IF(女子入力シート!C21=\"\",\"\",女子入力シート!C21)","v":""},{"$f":"IF(E17=\"\",\"\",VLOOKUP(女子入力シート!$C$2,校名[],3,FALSE))","v":""},{"$f":"IF(E17=\"\",\"\",E17&\"　\"&F17&\"（\"&I17&\"）\")","v":""},{"$f":"IF(女子入力シート!D21=\"\",\"\",女子入力シート!D21)","v":""},{"$f":"IF(女子入力シート!E21=\"\",\"\",女子入力シート!E21)","v":""},{"$f":"IF(E17=\"\",\"\",女子入力シート!F21&\"　\"&女子入力シート!G21)","v":""},{"$f":"IF(E17=\"\",\"\",女子入力シート!H21)","v":""},{"$f":"IF(E17=\"\",\"\",IF(女子入力シート!I21=0,\"無\",女子入力シート!I21))","v":""},{"$f":"IF(E17=\"\",\"\",女子入力シート!$C$2)","v":""}]
[3,{"$f":"IF(女子入力シート!C22=\"\",\"\",女子入力シート!C22)","v":""},{"$f":"IF(E18=\"\",\"\",VLOOKUP(女子入力シート!$C$2,校名[],3,FALSE))","v":""},"",{"$f":"IF(女子入力シート!D22=\"\",\"\",女子入力シート!D22)","v":""},{"$f":"IF(女子入力シート!E22=\"\",\"\",女子入力シート!E22)","v":""},{"$f":"IF(E18=\"\",\"\",女子入力シート!F22&\"　\"&女子入力シート!G22)","v":""},{"$f":"IF(E18=\"\",\"\",女子入力シート!H22)","v":""},{"$f":"IF(E18=\"\",\"\",IF(女子入力シート!I22=0,\"無\",女子入力シート!I22))","v":""},{"$f":"IF(E18=\"\",\"\",女子入力シート!$C$2)","v":""}]
[4,{"$f":"IF(女子入力シート!C23=\"\",\"\",女子入力シート!C23)","v":""},{"$f":"IF(E19=\"\",\"\",VLOOKUP(女子入力シート!$C$2,校名[],3,FALSE))","v":""},"",{"$f":"IF(女子入力シート!D23=\"\",\"\",女子入力シート!D23)","v":""},{"$f":"IF(女子入力シート!E23=\"\",\"\",女子入力シート!E23)","v":""},{"$f":"IF(E19=\"\",\"\",女子入力シート!F23&\"　\"&女子入力シート!G23)","v":""},{"$f":"IF(E19=\"\",\"\",女子入力シート!H23)","v":""},{"$f":"IF(E19=\"\",\"\",IF(女子入力シート!I23=0,\"無\",女子入力シート!I23))","v":""},{"$f":"IF(E19=\"\",\"\",女子入力シート!$C$2)","v":""}]
[5,{"$f":"IF(女子入力シート!C24=\"\",\"\",女子入力シート!C24)","v":""},{"$f":"IF(E20=\"\",\"\",VLOOKUP(女子入力シート!$C$2,校名[],3,FALSE))","v":""},"",{"$f":"IF(女子入力シート!D24=\"\",\"\",女子入力シート!D24)","v":""},{"$f":"IF(女子入力シート!E24=\"\",\"\",女子入力シート!E24)","v":""},{"$f":"IF(E20=\"\",\"\",女子入力シート!F24&\"　\"&女子入力シート!G24)","v":""},{"$f":"IF(E20=\"\",\"\",女子入力シート!H24)","v":""},{"$f":"IF(E20=\"\",\"\",IF(女子入力シート!I24=0,\"無\",女子入力シート!I24))","v":""},{"$f":"IF(E20=\"\",\"\",女子入力シート!$C$2)","v":""}]
[6,{"$f":"IF(女子入力シート!C25=\"\",\"\",女子入力シート!C25)","v":""},{"$f":"IF(E21=\"\",\"\",VLOOKUP(女子入力シート!$C$2,校名[],3,FALSE))","v":""},"",{"$f":"IF(女子入力シート!D25=\"\",\"\",女子入力シート!D25)","v":""},{"$f":"IF(女子入力シート!E25=\"\",\"\",女子入力シート!E25)","v":""},{"$f":"IF(E21=\"\",\"\",女子入力シート!F25&\"　\"&女子入力シート!G25)","v":""},{"$f":"IF(E21=\"\",\"\",女子入力シート!H25)","v":""},{"$f":"IF(E21=\"\",\"\",IF(女子入力シート!I25=0,\"無\",女子入力シート!I25))","v":""},{"$f":"IF(E21=\"\",\"\",女子入力シート!$C$2)","v":""}]

{"sheet":"申込選手一覧sort（個人）","index":11,"n_rows":2,"n_cols":9,"rows_kept":2,"cut":false,"hidden":false,"merged":[]}
["階級","学校名","エントリー用","姓","名","ふりがな","学年","段位","学校番号"]
[{"$f":"_xlfn._xlws.SORT(_xlfn._xlws.FILTER('申込選手一覧（個人）'!B2:J21,'申込選手一覧（個人）'!C2:C21<>\"\",\"\"),1)","v":""}]

{"sheet":"プログラム","index":12,"n_rows":22,"n_cols":36,"rows_kept":22,"cut":false,"hidden":false,"merged":[[1,3,1,6],[2,5,2,6],[9,1,9,2],[10,1,10,2],[11,1,11,2],[4,1,4,2],[5,1,5,2],[6,1,6,2],[7,1,7,2],[8,1,8,2],[20,1,20,2],[21,1,21,2],[14,3,14,6],[15,5,15,6],[17,1,17,2],[18,1,18,2],[19,1,19,2]]}
[]
[null,"No.",null,{"$f":"IF(男子入力シート!C2=\"\",\"\",男子入力シート!D2)","v":""}]
[null,null,null,null,"監督：",{"$f":"IF(男子入力シート!D4=\"\",\"\",男子入力シート!D4)","v":""},null,{"$f":"IF(男子入力シート!I9=\"\",\"\",男子入力シート!I9)","v":""},"昇段用データ",null,"男子",null,null,null,null,null,null,null,null,null,null,null,null,null,null,null,"女子"]
[null,null,null,"名前","段","体重","身長",{"$f":"IF(男子入力シート!I10=\"\",\"\",男子入力シート!I10)","v":""},"男子高校名","女子高校名","先","次","中","副","大","補1","補2","補3","先　段","次　段","中　段","副　段","大　段","補1　　段","補2　段","補3　段","先","中","大","補1","補2","先　段","中　段","大　段","補1　　段","補2　段"]
[null,"先　鋒",null,{"$f":"IF(男子入力シート!D9=\"\",\"\",男子入力シート!D9&\"　\"&男子入力シート!E9)","v":""},{"$f":"IF(男子入力シート!I9=\"\",\"\",男子入力シート!I9)","v":""},{"$f":"IF(男子入力シート!K9=\"\",\"\",男子入力シート!J9)","v":""},{"$f":"IF(男子入力シート!L9=\"\",\"\",男子入力シート!K9)","v":""},{"$f":"IF(男子入力シート!I11=\"\",\"\",男子入力シート!I11)","v":""},{"$f":"D2","v":""},{"$f":"D15","v":""},{"$f":"D5","v":""},{"$f":"D6","v":""},{"$f":"D7","v":""},{"$f":"D8","v":""},{"$f":"D9","v":""},{"$f":"D10","v":""},{"$f":"D11","v":""},{"$f":"D12","v":""},{"$f":"E5","v":""},{"$f":"E6","v":""},{"$f":"E7","v":""},{"$f":"E8","v":""},{"$f":"E9","v":""},{"$f":"E10","v":""},{"$f":"E11","v":""},{"$f":"E12","v":""},{"$f":"D18","v":""},{"$f":"D19","v":""},{"$f":"D20","v":""},{"$f":"D21","v":""},{"$f":"D22","v":""},{"$f":"E18","v":""},{"$f":"E19","v":""},{"$f":"E20","v":""},{"$f":"E21","v":""},{"$f":"E22","v":""}]
[null,"次　鋒",null,{"$f":"IF(男子入力シート!D10=\"\",\"\",男子入力シート!D10&\"　\"&男子入力シート!E10)","v":""},{"$f":"IF(男子入力シート!I10=\"\",\"\",男子入力シート!I10)","v":""},{"$f":"IF(男子入力シート!K10=\"\",\"\",男子入力シート!J10)","v":""},{"$f":"IF(男子入力シート!L10=\"\",\"\",男子入力シート!K10)","v":""},{"$f":"IF(男子入力シート!I12=\"\",\"\",男子入力シート!I12)","v":""}]
[null,"中　堅",null,{"$f":"IF(男子入力シート!D11=\"\",\"\",男子入力シート!D11&\"　\"&男子入力シート!E11)","v":""},{"$f":"IF(男子入力シート!I11=\"\",\"\",男子入力シート!I11)","v":""},{"$f":"IF(男子入力シート!K11=\"\",\"\",男子入力シート!J11)","v":""},{"$f":"IF(男子入力シート!L11=\"\",\"\",男子入力シート!K11)","v":""},{"$f":"IF(男子入力シート!I13=\"\",\"\",男子入力シート!I13)","v":""}]
[null,"副　将",null,{"$f":"IF(男子入力シート!D12=\"\",\"\",男子入力シート!D12&\"　\"&男子入力シート!E12)","v":""},{"$f":"IF(男子入力シート!I12=\"\",\"\",男子入力シート!I12)","v":""},{"$f":"IF(男子入力シート!K12=\"\",\"\",男子入力シート!J12)","v":""},{"$f":"IF(男子入力シート!L12=\"\",\"\",男子入力シート!K12)","v":""},{"$f":"IF(男子入力シート!I14=\"\",\"\",男子入力シート!I14)","v":""}]
[null,"大　将",null,{"$f":"IF(男子入力シート!D13=\"\",\"\",男子入力シート!D13&\"　\"&男子入力シート!E13)","v":""},{"$f":"IF(男子入力シート!I13=\"\",\"\",男子入力シート!I13)","v":""},{"$f":"IF(男子入力シート!K13=\"\",\"\",男子入力シート!J13)","v":""},{"$f":"IF(男子入力シート!L13=\"\",\"\",男子入力シート!K13)","v":""},{"$f":"IF(男子入力シート!I15=\"\",\"\",男子入力シート!I15)","v":""}]
[null,"補欠１",null,{"$f":"IF(男子入力シート!D14=\"\",\"\",男子入力シート!D14&\"　\"&男子入力シート!E14)","v":""},{"$f":"IF(男子入力シート!I14=\"\",\"\",男子入力シート!I14)","v":""},{"$f":"IF(男子入力シート!K14=\"\",\"\",男子入力シート!J14)","v":""},{"$f":"IF(男子入力シート!L14=\"\",\"\",男子入力シート!K14)","v":""}]
[null,"補欠２",null,{"$f":"IF(男子入力シート!D15=\"\",\"\",男子入力シート!D15&\"　\"&男子入力シート!E15)","v":""},{"$f":"IF(男子入力シート!I15=\"\",\"\",男子入力シート!I15)","v":""},{"$f":"IF(男子入力シート!K15=\"\",\"\",男子入力シート!J15)","v":""},{"$f":"IF(男子入力シート!L15=\"\",\"\",男子入力シート!K15)","v":""}]
[null,"補欠３",null,{"$f":"IF(男子入力シート!D16=\"\",\"\",男子入力シート!D16&\"　\"&男子入力シート!E16)","v":""},{"$f":"IF(男子入力シート!I16=\"\",\"\",男子入力シート!I16)","v":""},{"$f":"IF(男子入力シート!K16=\"\",\"\",男子入力シート!J16)","v":""},{"$f":"IF(男子入力シート!L16=\"\",\"\",男子入力シート!K16)","v":""}]
[]
[]
[null,"No.",null,{"$f":"IF(女子入力シート!C2=\"\",\"\",女子入力シート!D2)","v":""}]
[null,null,null,null,"監督：",{"$f":"IF(女子入力シート!D4=\"\",\"\",女子入力シート!D4)","v":""}]
[null,null,null,"名前","段","体重","身長"]
[null,"先　鋒",null,{"$f":"IF(女子入力シート!D9=\"\",\"\",女子入力シート!D9&\"　\"&女子入力シート!E9)","v":""},{"$f":"IF(女子入力シート!I9=\"\",\"\",女子入力シート!I9)","v":""},{"$f":"IF(女子入力シート!K9=\"\",\"\",女子入力シート!J9)","v":""},{"$f":"IF(女子入力シート!L9=\"\",\"\",女子入力シート!K9)","v":""}]
[null,"中　堅",null,{"$f":"IF(女子入力シート!D10=\"\",\"\",女子入力シート!D10&\"　\"&女子入力シート!E10)","v":""},{"$f":"IF(女子入力シート!I10=\"\",\"\",女子入力シート!I10)","v":""},{"$f":"IF(女子入力シート!K10=\"\",\"\",女子入力シート!J10)","v":""},{"$f":"IF(女子入力シート!L10=\"\",\"\",女子入力シート!K10)","v":""}]
[null,"大　将",null,{"$f":"IF(女子入力シート!D11=\"\",\"\",女子入力シート!D11&\"　\"&女子入力シート!E11)","v":""},{"$f":"IF(女子入力シート!I11=\"\",\"\",女子入力シート!I11)","v":""},{"$f":"IF(女子入力シート!K11=\"\",\"\",女子入力シート!J11)","v":""},{"$f":"IF(女子入力シート!L11=\"\",\"\",女子入力シート!K11)","v":""}]
[null,"補欠１",null,{"$f":"IF(女子入力シート!D12=\"\",\"\",女子入力シート!D12&\"　\"&女子入力シート!E12)","v":""},{"$f":"IF(女子入力シート!I12=\"\",\"\",女子入力シート!I12)","v":""},{"$f":"IF(女子入力シート!K12=\"\",\"\",女子入力シート!J12)","v":""},{"$f":"IF(女子入力シート!L12=\"\",\"\",女子入力シート!K12)","v":""}]
[null,"補欠２",null,{"$f":"IF(女子入力シート!D13=\"\",\"\",女子入力シート!D13&\"　\"&女子入力シート!E13)","v":""},{"$f":"IF(女子入力シート!I13=\"\",\"\",女子入力シート!I13)","v":""},{"$f":"IF(女子入力シート!K13=\"\",\"\",女子入力シート!J13)","v":""},{"$f":"IF(女子入力シート!L13=\"\",\"\",女子入力シート!K13)","v":""}]